Workbook

Sheet Beispiel 1
A1: Geschlecht (Frauen 1, Männer 2) | B1: Raucher (Raucher 1, Nichtraucher 2) | F1: Gibt es einen Zusammenhang zwischen Geschlecht und Rauchverhalten?
A2: 1 | B2: 1 | F2: Alpha = 0.05
A3: 1 | B3: 1
A4: 1 | B4: 1
A5: 1 | B5: 1
A6: 1 | B6: 1
A7: 1 | B7: 1
A8: 1 | B8: 1
A9: 1 | B9: 1
A10: 1 | B10: 1
A11: 1 | B11: 1
A12: 1 | B12: 1
A13: 1 | B13: 1
A14: 1 | B14: 2
A15: 1 | B15: 2
A16: 1 | B16: 2
A17: 1 | B17: 2
A18: 1 | B18: 2
A19: 1 | B19: 2
A20: 1 | B20: 2
A21: 1 | B21: 2
A22: 1 | B22: 2
A23: 1 | B23: 2
A24: 1 | B24: 2
A25: 1 | B25: 2
A26: 1 | B26: 2
A27: 1 | B27: 2
A28: 1 | B28: 2
A29: 1 | B29: 2
A30: 1 | B30: 2
A31: 1 | B31: 2
A32: 1 | B32: 2
A33: 1 | B33: 2
A34: 1 | B34: 2
A35: 1 | B35: 2
A36: 1 | B36: 2
A37: 1 | B37: 2
A38: 1 | B38: 2
A39: 1 | B39: 2
A40: 1 | B40: 2
A41: 1 | B41: 2
A42: 1 | B42: 2
A43: 1 | B43: 2
A44: 1 | B44: 2
A45: 1 | B45: 2
A46: 1 | B46: 2
A47: 1 | B47: 2
A48: 2 | B48: 1
A49: 2 | B49: 1
A50: 2 | B50: 1
A51: 2 | B51: 1
A52: 2 | B52: 1
A53: 2 | B53: 1
A54: 2 | B54: 1
A55: 2 | B55: 1
A56: 2 | B56: 1
A57: 2 | B57: 1
A58: 2 | B58: 1
A59: 2 | B59: 2
A60: 2 | B60: 2
A61: 2 | B61: 2
A62: 2 | B62: 2
A63: 2 | B63: 2
A64: 2 | B64: 2
A65: 2 | B65: 2
A66: 2 | B66: 2
A67: 2 | B67: 2
A68: 2 | B68: 2
A69: 2 | B69: 2
A70: 2 | B70: 2
A71: 2 | B71: 2
A72: 2 | B72: 2
A73: 2 | B73: 2
A74: 2 | B74: 2
A75: 2 | B75: 2
A76: 2 | B76: 2
A77: 2 | B77: 2
A78: 2 | B78: 2
A79: 2 | B79: 2
A80: 2 | B80: 2
A81: 2 | B81: 2
A82: 2 | B82: 2
A83: 2 | B83: 2
A84: 2 | B84: 2
A85: 2 | B85: 2
A86: 2 | B86: 2
A87: 2 | B87: 2
A88: 2 | B88: 2
A89: 2 | B89: 2
A90: 2 | B90: 2
A91: 2 | B91: 2
A92: 2 | B92: 2
A93: 2 | B93: 2
A94: 2 | B94: 2
A95: 2 | B95: 2
A96: 2 | B96: 2
A97: 2 | B97: 2
A98: 2 | B98: 2
A99: 2 | B99: 2
A100: 2 | B100: 2
A101: 2 | B101: 2

Sheet Beispiel 1 (2)
A1: Geschlecht (Frauen 1, Männer 2) | B1: Raucher (Raucher 1, Nichtraucher 2) | F1: Gibt es einen Zusammenhang zwischen Geschlecht und Rauchverhalten? | M1: Geschlecht | N1: Raucherverhalten
A2: 1 | B2: 1 | F2: Alpha = 0.05 | M2: 1 | N2: 1
A3: 1 | B3: 1 | M3: 1 | N3: 1
A4: 1 | B4: 1 | F4: H0: die faktischen Häufigkeiten weichen nicht von den erwarteten ab | M4: 1 | N4: 1
A5: 1 | B5: 1 | F5: HA: die faktischen Häufigkeiten weichen von den erwarteten ab. | M5: 1 | N5: 1
A6: 1 | B6: 1 | M6: 1 | N6: 1
A7: 1 | B7: 1 | H7: Rauchverhalten | M7: 1 | N7: 1
A8: 1 | B8: 1 | H8: Raucher | I8: Nichtraucher | M8: 1 | N8: 1
A9: 1 | B9: 1 | H9: 1 | I9: 2 | J9: Randsummen | M9: 1 | N9: 1
A10: 1 | B10: 1 | E10: Geschlecht | F10: Frauen | G10: 1 | H10: =SUM(IF(($A$2:$A$101=$G10)*($B$2:$B$101=H$9),1,0)) -> 12 | I10: =SUM(IF(($A$2:$A$101=$G10)*($B$2:$B$101=I$9),1,0)) -> 34 | J10: =SUM(H10:I10) -> 46 | M10: 1 | N10: 1
A11: 1 | B11: 1 | F11: Männer | G11: 2 | H11: =SUM(IF(($A$2:$A$101=$G11)*($B$2:$B$101=H$9),1,0)) -> 11 | I11: =SUM(IF(($A$2:$A$101=$G11)*($B$2:$B$101=I$9),1,0)) -> 43 | J11: =SUM(H11:I11) -> 54 | M11: 1 | N11: 1
A12: 1 | B12: 1 | F12: Randsummen | H12: =SUM(H10:H11) -> 23 | I12: =SUM(I10:I11) -> 77 | J12: =SUM(J9:J11) -> 100 | M12: 1 | N12: 1
A13: 1 | B13: 1 | M13: 1 | N13: 1
A14: 1 | B14: 2 | M14: 1 | N14: 2
A15: 1 | B15: 2 | E15: erwartete Häufigkeiten | H15: =H$12*$J10/$J$12 -> 10.58 | I15: =I$12*$J10/$J$12 -> 35.42 | J15: =SUM(H15:I15) -> 46 | M15: 1 | N15: 2
A16: 1 | B16: 2 | H16: =H$12*$J11/$J$12 -> 12.42 | I16: =I$12*$J11/$J$12 -> 41.58 | J16: =SUM(H16:I16) -> 54 | M16: 1 | N16: 2
A17: 1 | B17: 2 | F17: Randummen | H17: =SUM(H15:H16) -> 23 | I17: =SUM(I15:I16) -> 77 | J17: =SUM(J15:J16) -> 100 | M17: 1 | N17: 2
A18: 1 | B18: 2 | M18: 1 | N18: 2
A19: 1 | B19: 2 | M19: 1 | N19: 2
A20: 1 | B20: 2 | E20: Summanden der Teststatistik | H20: =(H10-H15)^2/H15 -> 0.1905860113 | I20: =(I10-I15)^2/I15 -> 0.0569282891 | M20: 1 | N20: 2
A21: 1 | B21: 2 | H21: =(H11-H16)^2/H16 -> 0.1623510467 | I21: =(I11-I16)^2/I16 -> 0.04849446849 | M21: 1 | N21: 2
A22: 1 | B22: 2 | I22: Teststatistik | J22: =SUM(H20:I21) -> 0.4583598156 | M22: 1 | N22: 2
A23: 1 | B23: 2 | I23: p-Wert | J23: =1-_xlfn.CHISQ.DIST(J22,1,1) -> 0.4983915147 | M23: 1 | N23: 2
A24: 1 | B24: 2 | M24: 1 | N24: 2
A25: 1 | B25: 2 | G25: > 0.05 | M25: 1 | N25: 2
A26: 1 | B26: 2 | G26: also nicht signifikante Abweichungen der faktischen | M26: 1 | N26: 2
A27: 1 | B27: 2 | G27: von den erwarteten Häufigkeiten | M27: 1 | N27: 2
A28: 1 | B28: 2 | M28: 1 | N28: 2
A29: 1 | B29: 2 | E29: Residuen | H29: =H10-H15 -> 1.42 | I29: =I10-I15 -> -1.42 | M29: 1 | N29: 2
A30: 1 | B30: 2 | H30: =H11-H16 -> -1.42 | I30: =I11-I16 -> 1.42 | M30: 1 | N30: 2
A31: 1 | B31: 2 | M31: 1 | N31: 2
A32: 1 | B32: 2 | E32: Pearson-Residuen | H32: =(H10-H15)/SQRT(H15) -> 0.4365615779 | I32: =(I10-I15)/SQRT(I15) -> -0.2385964985 | M32: 1 | N32: 2
A33: 1 | B33: 2 | H33: =(H11-H16)/SQRT(H16) -> -0.4029280912 | I33: =(I11-I16)/SQRT(I16) -> 0.2202145965 | M33: 1 | N33: 2
A34: 1 | B34: 2 | M34: 1 | N34: 2
A35: 1 | B35: 2 | M35: 1 | N35: 2
A36: 1 | B36: 2 | E36: standardisierte Pearson-Residuen | H36: =(H10-H15)/SQRT(H15*(1-H$12/$J$12)*(1-$J10/$J$12)) -> 0.6770227586 | I36: =(I10-I15)/SQRT(I15*(1-I$12/$J$12)*(1-$J10/$J$12)) -> -0.6770227586 | M36: 1 | N36: 2
A37: 1 | B37: 2 | H37: =(H11-H16)/SQRT(H16*(1-H$12/$J$12)*(1-$J11/$J$12)) -> -0.6770227586 | I37: =(I11-I16)/SQRT(I16*(1-I$12/$J$12)*(1-$J11/$J$12)) -> 0.6770227586 | M37: 1 | N37: 2
A38: 1 | B38: 2 | H38: es gibt keine Zellen mit signifikanten Abweichungen | M38: 1 | N38: 2
A39: 1 | B39: 2 | M39: 1 | N39: 2
A40: 1 | B40: 2 | E40: Ergebnisse mit R (Man liest die zwei Spalten rechts ein): | M40: 1 | N40: 2
A41: 1 | B41: 2 | E41: > rauch=read.table("clipboard",header=T) | M41: 1 | N41: 2
A42: 1 | B42: 2 | E42: > head(rauch) | M42: 1 | N42: 2
A43: 1 | B43: 2 | E43: Geschlecht Raucherverhalten | M43: 1 | N43: 2
A44: 1 | B44: 2 | E44: 1 1 1 | M44: 1 | N44: 2
A45: 1 | B45: 2 | E45: 2 1 1 | M45: 1 | N45: 2
A46: 1 | B46: 2 | E46: 3 1 1 | M46: 1 | N46: 2
A47: 1 | B47: 2 | E47: 4 1 1 | M47: 1 | N47: 2
A48: 2 | B48: 1 | E48: 5 1 1 | M48: 2 | N48: 1
A49: 2 | B49: 1 | E49: 6 1 1 | M49: 2 | N49: 1
A50: 2 | B50: 1 | E50: > tabrauch=table(rauch$Geschlecht,rauch$Raucherverhalten) | M50: 2 | N50: 1
A51: 2 | B51: 1 | E51: > rownames(tabrauch)=c("Frauen","Maenner") | M51: 2 | N51: 1
A52: 2 | B52: 1 | E52: > colnames(tabrauch)= c("Raucher","Nichtraucher") | M52: 2 | N52: 1
A53: 2 | B53: 1 | E53: > tabrauch | M53: 2 | N53: 1
A54: 2 | B54: 1 | M54: 2 | N54: 1
A55: 2 | B55: 1 | E55: Raucher Nichtraucher | M55: 2 | N55: 1
A56: 2 | B56: 1 | E56: Frauen 12 34 | M56: 2 | N56: 1
A57: 2 | B57: 1 | E57: Maenner 11 43 | M57: 2 | N57: 1
A58: 2 | B58: 1 | E58: > | M58: 2 | N58: 1
A59: 2 | B59: 2 | E59: > testrauch=chisq.test(rauch$Geschlecht,rauch$Raucherverhalten) | M59: 2 | N59: 2
A60: 2 | B60: 2 | E60: > testrauch | M60: 2 | N60: 2
A61: 2 | B61: 2 | M61: 2 | N61: 2
A62: 2 | B62: 2 | E62: Pearson's Chi-squared test with Yates' continuity correction | M62: 2 | N62: 2
A63: 2 | B63: 2 | M63: 2 | N63: 2
A64: 2 | B64: 2 | E64: data: rauch$Geschlecht and rauch$Raucherverhalten | M64: 2 | N64: 2
A65: 2 | B65: 2 | E65: X-squared = 0.1924, df = 1, p-value = 0.6609 | M65: 2 | N65: 2
A66: 2 | B66: 2 | M66: 2 | N66: 2
A67: 2 | B67: 2 | E67: > #Residuen | M67: 2 | N67: 2
A68: 2 | B68: 2 | E68: > testrauch$observed-testrauch$expected | M68: 2 | N68: 2
A69: 2 | B69: 2 | E69: rauch$Raucherverhalten | M69: 2 | N69: 2
A70: 2 | B70: 2 | E70: rauch$Geschlecht 1 2 | M70: 2 | N70: 2
A71: 2 | B71: 2 | E71: 1 1.42 -1.42 | M71: 2 | N71: 2
A72: 2 | B72: 2 | E72: 2 -1.42 1.42 | M72: 2 | N72: 2
A73: 2 | B73: 2 | E73: > #Pearson-Residuen | M73: 2 | N73: 2
A74: 2 | B74: 2 | E74: > testrauch$residuals | M74: 2 | N74: 2
A75: 2 | B75: 2 | E75: rauch$Raucherverhalten | M75: 2 | N75: 2
A76: 2 | B76: 2 | E76: rauch$Geschlecht 1 2 | M76: 2 | N76: 2
A77: 2 | B77: 2 | E77: 1 0.4365616 -0.2385965 | M77: 2 | N77: 2
A78: 2 | B78: 2 | E78: 2 -0.4029281 0.2202146 | M78: 2 | N78: 2
A79: 2 | B79: 2 | E79: > #standardisierte Pearson-Residuen | M79: 2 | N79: 2
A80: 2 | B80: 2 | E80: > testrauch$stdres | M80: 2 | N80: 2
A81: 2 | B81: 2 | E81: rauch$Raucherverhalten | M81: 2 | N81: 2
A82: 2 | B82: 2 | E82: rauch$Geschlecht 1 2 | M82: 2 | N82: 2
A83: 2 | B83: 2 | E83: 1 0.6770228 -0.6770228 | M83: 2 | N83: 2
A84: 2 | B84: 2 | E84: 2 -0.6770228 0.6770228 | M84: 2 | N84: 2
A85: 2 | B85: 2 | M85: 2 | N85: 2
A86: 2 | B86: 2 | M86: 2 | N86: 2
A87: 2 | B87: 2 | M87: 2 | N87: 2
A88: 2 | B88: 2 | E88: Im Test erhält man nicht dieselben Ergebnisse wie mit Excel. Diese erhält man mit: | M88: 2 | N88: 2
A89: 2 | B89: 2 | E89: chisq.test(rauch$Geschlecht,rauch$Raucherverhalten,correct = F) | M89: 2 | N89: 2
A90: 2 | B90: 2 | M90: 2 | N90: 2
A91: 2 | B91: 2 | M91: 2 | N91: 2
A92: 2 | B92: 2 | M92: 2 | N92: 2
A93: 2 | B93: 2 | M93: 2 | N93: 2
A94: 2 | B94: 2 | M94: 2 | N94: 2
A95: 2 | B95: 2 | M95: 2 | N95: 2
A96: 2 | B96: 2 | M96: 2 | N96: 2
A97: 2 | B97: 2 | M97: 2 | N97: 2
A98: 2 | B98: 2 | M98: 2 | N98: 2
A99: 2 | B99: 2 | M99: 2 | N99: 2
A100: 2 | B100: 2 | M100: 2 | N100: 2
A101: 2 | B101: 2 | M101: 2 | N101: 2

Sheet Beispiel 2
A1: Intensität von Gruppenarbeiten (1 hoch, 2 mittel, 3 gering) | B1: Arbeitsklima (1 verbessert; 2 unverändert; 3 verschlechtert) | G1: Wie verhält sich das Arbeitsklima bezüglich Intensität von Gruppenarbeiten?
A2: 1 | B2: 2 | G2: Alpha = 0.05
A3: 1 | B3: 1
A4: 1 | B4: 1
A5: 1 | B5: 1
A6: 1 | B6: 2
A7: 1 | B7: 2
A8: 2 | B8: 3
A9: 2 | B9: 1
A10: 3 | B10: 1
A11: 1 | B11: 1
A12: 2 | B12: 2
A13: 1 | B13: 3
A14: 2 | B14: 1
A15: 2 | B15: 2
A16: 1 | B16: 1
A17: 2 | B17: 1
A18: 2 | B18: 1
A19: 2 | B19: 2
A20: 2 | B20: 1
A21: 1 | B21: 2
A22: 2 | B22: 1
A23: 1 | B23: 1
A24: 1 | B24: 1
A25: 3 | B25: 1
A26: 3 | B26: 1
A27: 1 | B27: 2
A28: 2 | B28: 1
A29: 1 | B29: 1
A30: 3 | B30: 2
A31: 2 | B31: 1
A32: 2 | B32: 2
A33: 1 | B33: 3
A34: 1 | B34: 1
A35: 2 | B35: 2
A36: 1 | B36: 3
A37: 1 | B37: 3
A38: 1 | B38: 1
A39: 2 | B39: 2
A40: 1 | B40: 1
A41: 2 | B41: 1
A42: 3 | B42: 2
A43: 1 | B43: 1
A44: 3 | B44: 2
A45: 3 | B45: 3
A46: 1 | B46: 2
A47: 3 | B47: 2
A48: 2 | B48: 2
A49: 2 | B49: 3
A50: 1 | B50: 2
A51: 1 | B51: 2
A52: 2 | B52: 2
A53: 2 | B53: 2
A54: 2 | B54: 2
A55: 1 | B55: 1
A56: 3 | B56: 3
A57: 1 | B57: 1
A58: 3 | B58: 2
A59: 2 | B59: 2
A60: 3 | B60: 1
A61: 3 | B61: 1
A62: 1 | B62: 2
A63: 1 | B63: 2
A64: 3 | B64: 3
A65: 1 | B65: 1
A66: 1 | B66: 2
A67: 3 | B67: 3
A68: 3 | B68: 1
A69: 1 | B69: 2
A70: 3 | B70: 1
A71: 3 | B71: 2
A72: 1 | B72: 3
A73: 1 | B73: 3
A74: 1 | B74: 1
A75: 1 | B75: 2
A76: 1 | B76: 1
A77: 1 | B77: 1
A78: 1 | B78: 1
A79: 1 | B79: 1
A80: 2 | B80: 1
A81: 3 | B81: 2
A82: 1 | B82: 1
A83: 1 | B83: 1
A84: 1 | B84: 1
A85: 1 | B85: 1
A86: 2 | B86: 1
A87: 1 | B87: 3
A88: 1 | B88: 1
A89: 1 | B89: 1
A90: 1 | B90: 1
A91: 2 | B91: 1
A92: 2 | B92: 1
A93: 1 | B93: 1
A94: 3 | B94: 1
A95: 3 | B95: 3
A96: 2 | B96: 1
A97: 1 | B97: 1
A98: 1 | B98: 2
A99: 3 | B99: 3
A100: 1 | B100: 1
A101: 1 | B101: 3
A102: 1 | B102: 2
A103: 1 | B103: 1
A104: 1 | B104: 1
A105: 1 | B105: 2
A106: 1 | B106: 2
A107: 1 | B107: 1
A108: 1 | B108: 1
A109: 2 | B109: 1
A110: 3 | B110: 3
A111: 1 | B111: 1
A112: 3 | B112: 2
A113: 1 | B113: 2
A114: 1 | B114: 2
A115: 2 | B115: 1
A116: 3 | B116: 2
A117: 3 | B117: 2
A118: 1 | B118: 1
A119: 2 | B119: 2
A120: 1 | B120: 1
A121: 1 | B121: 2
A122: 1 | B122: 1
A123: 2 | B123: 2
A124: 1 | B124: 2
A125: 1 | B125: 3
A126: 3 | B126: 1
A127: 1 | B127: 2
A128: 2 | B128: 2
A129: 1 | B129: 3
A130: 1 | B130: 1
A131: 2 | B131: 1
A132: 1 | B132: 2
A133: 1 | B133: 2
A134: 1 | B134: 1
A135: 1 | B135: 1
A136: 1 | B136: 1
A137: 1 | B137: 1
A138: 3 | B138: 2
A139: 3 | B139: 2
A140: 3 | B140: 2
A141: 2 | B141: 2
A142: 1 | B142: 1
A143: 2 | B143: 1
A144: 1 | B144: 2
A145: 1 | B145: 2
A146: 1 | B146: 2
A147: 3 | B147: 1
A148: 1 | B148: 2
A149: 1 | B149: 1
A150: 1 | B150: 2
A151: 3 | B151: 1
A152: 3 | B152: 1
A153: 1 | B153: 1
A154: 2 | B154: 2
A155: 1 | B155: 1
A156: 1 | B156: 1
A157: 1 | B157: 2
A158: 2 | B158: 2
A159: 1 | B159: 1
A160: 2 | B160: 1
A161: 3 | B161: 1
A162: 2 | B162: 2
A163: 1 | B163: 1
A164: 2 | B164: 2
A165: 2 | B165: 3
A166: 1 | B166: 1
A167: 3 | B167: 3
A168: 1 | B168: 2
A169: 1 | B169: 2
A170: 2 | B170: 3
A171: 2 | B171: 1
A172: 1 | B172: 1
A173: 1 | B173: 2
A174: 2 | B174: 2
A175: 2 | B175: 3
A176: 1 | B176: 2
A177: 1 | B177: 3
A178: 1 | B178: 1
A179: 1 | B179: 1
A180: 1 | B180: 1
A181: 1 | B181: 1
A182: 1 | B182: 1
A183: 2 | B183: 2
A184: 1 | B184: 1
A185: 2 | B185: 2
A186: 2 | B186: 1
A187: 1 | B187: 1
A188: 1 | B188: 1
A189: 2 | B189: 3
A190: 3 | B190: 3
A191: 3 | B191: 2
A192: 1 | B192: 3
A193: 1 | B193: 3
A194: 2 | B194: 2
A195: 1 | B195: 1
A196: 2 | B196: 2
A197: 3 | B197: 1
A198: 2 | B198: 1
A199: 1 | B199: 1
A200: 3 | B200: 2
... 130 more rows

Sheet Beispiel 2 (2)
A1: Intensität von Gruppenarbeiten (1 hoch, 2 mittel, 3 gering) | B1: Arbeitsklima (1 verbessert; 2 unverändert; 3 verschlechtert) | G1: Wie verhält sich das Arbeitsklima bezüglich Intensität von Gruppenarbeiten? | M1: Gruppenarbeit | N1: Arbeitsklima
A2: 1 | B2: 2 | G2: H0: die faktischen Häufigkeiten weichen nicht von den erwarteten ab | M2: 1 | N2: 2
A3: 1 | B3: 1 | G3: HA: die faktischen Häufigkeiten weichen von den erwarteten ab. | M3: 1 | N3: 1
A4: 1 | B4: 1 | M4: 1 | N4: 1
A5: 1 | B5: 1 | G5: verbessert | H5: unverändert | I5: verschlechtert | M5: 1 | N5: 1
A6: 1 | B6: 2 | G6: 1 | H6: 2 | I6: 3 | J6: Randsummen | M6: 1 | N6: 2
A7: 1 | B7: 2 | E7: hoch | F7: 1 | G7: =SUM(IF(($A$2:$A$330=$F7)*($B$2:$B$330=G$6),1,0)) -> 101 | H7: =SUM(IF(($A$2:$A$330=$F7)*($B$2:$B$330=H$6),1,0)) -> 48 | I7: =SUM(IF(($A$2:$A$330=$F7)*($B$2:$B$330=I$6),1,0)) -> 17 | J7: =SUM(G7:I7) -> 166 | M7: 1 | N7: 2
A8: 2 | B8: 3 | E8: mittel | F8: 2 | G8: =SUM(IF(($A$2:$A$330=$F8)*($B$2:$B$330=G$6),1,0)) -> 41 | H8: =SUM(IF(($A$2:$A$330=$F8)*($B$2:$B$330=H$6),1,0)) -> 43 | I8: =SUM(IF(($A$2:$A$330=$F8)*($B$2:$B$330=I$6),1,0)) -> 8 | J8: =SUM(G8:I8) -> 92 | M8: 2 | N8: 3
A9: 2 | B9: 1 | E9: gering | F9: 3 | G9: =SUM(IF(($A$2:$A$330=$F9)*($B$2:$B$330=G$6),1,0)) -> 20 | H9: =SUM(IF(($A$2:$A$330=$F9)*($B$2:$B$330=H$6),1,0)) -> 36 | I9: =SUM(IF(($A$2:$A$330=$F9)*($B$2:$B$330=I$6),1,0)) -> 15 | J9: =SUM(G9:I9) -> 71 | M9: 2 | N9: 1
A10: 3 | B10: 1 | F10: Randsummen | G10: =SUM(G7:G9) -> 162 | H10: =SUM(H7:H9) -> 127 | I10: =SUM(I7:I9) -> 40 | J10: =SUM(J7:J9) -> 329 | M10: 3 | N10: 1
A11: 1 | B11: 1 | M11: 1 | N11: 1
A12: 2 | B12: 2 | M12: 2 | N12: 2
A13: 1 | B13: 3 | M13: 1 | N13: 3
A14: 2 | B14: 1 | E14: Erwwartete Häufigkeiten | J14: Randsummen | M14: 2 | N14: 1
A15: 2 | B15: 2 | G15: =G$10*$J7/$J$10 -> 81.73860182 | H15: 64.07902736 | I15: 20.18237082 | J15: =SUM(G15:I15) -> 166 | M15: 2 | N15: 2
A16: 1 | B16: 1 | G16: 45.30091185 | H16: 35.51367781 | I16: 11.18541033 | J16: =SUM(G16:I16) -> 92 | M16: 1 | N16: 1
A17: 2 | B17: 1 | G17: 34.96048632 | H17: 27.40729483 | I17: 8.632218845 | J17: =SUM(G17:I17) -> 71 | M17: 2 | N17: 1
A18: 2 | B18: 1 | F18: Randsummen | G18: =SUM(G15:G17) -> 162 | H18: =SUM(H15:H17) -> 127 | I18: =SUM(I15:I17) -> 40 | J18: =SUM(J15:J17) -> 329 | M18: 2 | N18: 1
A19: 2 | B19: 2 | M19: 2 | N19: 2
A20: 2 | B20: 1 | M20: 2 | N20: 1
A21: 1 | B21: 2 | E21: Summanden des Chiquadrat-Testwertes | M21: 1 | N21: 2
A22: 2 | B22: 1 | G22: =(G7-G15)^2/G15 -> 4.538876998 | H22: 4.034629291 | I22: 0.5017985315 | M22: 2 | N22: 1
A23: 1 | B23: 1 | G23: 0.4083326807 | H23: 1.578124919 | I23: 0.9071494648 | M23: 1 | N23: 1
A24: 1 | B24: 1 | G24: 6.401974759 | H24: 2.693975547 | I24: 4.69735969 | M24: 1 | N24: 1
A25: 3 | B25: 1 | I25: Testwert | J25: =SUM(G22:I24) -> 25.76222188 | M25: 3 | N25: 1
A26: 3 | B26: 1 | I26: p-Werte | J26: =1-_xlfn.CHISQ.DIST(J25,4,1) -> 3.533693055e-05 | M26: 3 | N26: 1
A27: 1 | B27: 2 | M27: 1 | N27: 2
A28: 2 | B28: 1 | H28: p-Werte < Alpha | M28: 2 | N28: 1
A29: 1 | B29: 1 | G29: die beiden Häufigkeitstabellen unterscheiden sich | M29: 1 | N29: 1
A30: 3 | B30: 2 | G30: signifikant. | M30: 3 | N30: 2
A31: 2 | B31: 1 | M31: 2 | N31: 1
A32: 2 | B32: 2 | E32: Residuen: | G32: =G7-G15 -> 19.26139818 | H32: -16.07902736 | I32: -3.182370821 | M32: 2 | N32: 2
A33: 1 | B33: 3 | G33: -4.300911854 | H33: 7.486322188 | I33: -3.185410334 | M33: 1 | N33: 3
A34: 1 | B34: 1 | G34: -14.96048632 | H34: 8.592705167 | I34: 6.367781155 | M34: 1 | N34: 1
A35: 2 | B35: 2 | M35: 2 | N35: 2
A36: 1 | B36: 3 | M36: 1 | N36: 3
A37: 1 | B37: 3 | E37: Pearson-Residuen: | G37: =(G7-G15)/SQRT(G15) -> 2.130464034 | H37: -2.008638666 | I37: -0.7083773934 | M37: 1 | N37: 3
A38: 1 | B38: 1 | G38: -0.6390091398 | H38: 1.25623442 | I38: -0.9524439431 | M38: 1 | N38: 1
A39: 2 | B39: 2 | G39: -2.530212394 | H39: 1.641333466 | I39: 2.167339311 | M39: 2 | N39: 2
A40: 1 | B40: 1 | M40: 1 | N40: 1
A41: 2 | B41: 1 | M41: 2 | N41: 1
A42: 3 | B42: 2 | E42: Standardisierte Pearson-Residuen | M42: 3 | N42: 2
A43: 1 | B43: 1 | G43: =(G7-G15)/SQRT(G15*(1-G$10/$J$10)*(1-$J7/$J$10)) -> 4.248328266 | H43: -3.641901785 | I43: -1.073786322 | M43: 1 | N43: 1
A44: 3 | B44: 2 | G44: -1.05674587 | H44: 1.888933761 | I44: -1.197325489 | M44: 3 | N44: 2
A45: 3 | B45: 3 | G45: -4.010373189 | H45: 2.36541412 | I45: 2.611343672 | M45: 3 | N45: 3
A46: 1 | B46: 2 | M46: 1 | N46: 2
A47: 3 | B47: 2 | E47: es gibt signifikante Abweichungen in den Zellen (1,1), (1,2), (3,1), (3,2) und (3,3) | M47: 3 | N47: 2
A48: 2 | B48: 2 | M48: 2 | N48: 2
A49: 2 | B49: 3 | M49: 2 | N49: 3
A50: 1 | B50: 2 | M50: 1 | N50: 2
A51: 1 | B51: 2 | M51: 1 | N51: 2
A52: 2 | B52: 2 | M52: 2 | N52: 2
A53: 2 | B53: 2 | E53: Mit R: | M53: 2 | N53: 2
A54: 2 | B54: 2 | E54: > Gruppen=read.table("clipboard",header=T) | M54: 2 | N54: 2
A55: 1 | B55: 1 | E55: > head(Gruppen) | M55: 1 | N55: 1
A56: 3 | B56: 3 | E56: Gruppenarbeit Arbeitsklima | M56: 3 | N56: 3
A57: 1 | B57: 1 | E57: 1 1 2 | M57: 1 | N57: 1
A58: 3 | B58: 2 | E58: 2 1 1 | M58: 3 | N58: 2
A59: 2 | B59: 2 | E59: 3 1 1 | M59: 2 | N59: 2
A60: 3 | B60: 1 | E60: 4 1 1 | M60: 3 | N60: 1
A61: 3 | B61: 1 | E61: 5 1 2 | M61: 3 | N61: 1
A62: 1 | B62: 2 | E62: 6 1 2 | M62: 1 | N62: 2
A63: 1 | B63: 2 | E63: > tabgrup=table(Gruppen$Gruppenarbeit,Gruppen$Arbeitsklima) | M63: 1 | N63: 2
A64: 3 | B64: 3 | E64: > rownames(tabgrup)=c("hoch","mittel","tief") | M64: 3 | N64: 3
A65: 1 | B65: 1 | E65: > colnames(tabgrup)= c("verbessert","unverändert","verschlechtert") | M65: 1 | N65: 1
A66: 1 | B66: 2 | E66: > tabgrup | M66: 1 | N66: 2
A67: 3 | B67: 3 | M67: 3 | N67: 3
A68: 3 | B68: 1 | E68: verbessert unverändert verschlechtert | M68: 3 | N68: 1
A69: 1 | B69: 2 | E69: hoch 101 48 17 | M69: 1 | N69: 2
A70: 3 | B70: 1 | E70: mittel 41 43 8 | M70: 3 | N70: 1
A71: 3 | B71: 2 | E71: tief 20 36 15 | M71: 3 | N71: 2
A72: 1 | B72: 3 | E72: > | M72: 1 | N72: 3
A73: 1 | B73: 3 | E73: > testgrup=chisq.test(Gruppen$Gruppenarbeit,Gruppen$Arbeitsklima) | M73: 1 | N73: 3
A74: 1 | B74: 1 | E74: > testgrup | M74: 1 | N74: 1
A75: 1 | B75: 2 | M75: 1 | N75: 2
A76: 1 | B76: 1 | E76: Pearson's Chi-squared test | M76: 1 | N76: 1
A77: 1 | B77: 1 | M77: 1 | N77: 1
A78: 1 | B78: 1 | E78: data: Gruppen$Gruppenarbeit and Gruppen$Arbeitsklima | M78: 1 | N78: 1
A79: 1 | B79: 1 | E79: X-squared = 25.762, df = 4, p-value = 3.534e-05 | M79: 1 | N79: 1
A80: 2 | B80: 1 | M80: 2 | N80: 1
A81: 3 | B81: 2 | E81: > #Residuen | M81: 3 | N81: 2
A82: 1 | B82: 1 | E82: > testgrup$observed-testgrup$expected | M82: 1 | N82: 1
A83: 1 | B83: 1 | E83: Gruppen$Arbeitsklima | M83: 1 | N83: 1
A84: 1 | B84: 1 | E84: Gruppen$Gruppenarbeit 1 2 3 | M84: 1 | N84: 1
A85: 1 | B85: 1 | E85: 1 19.261398 -16.079027 -3.182371 | M85: 1 | N85: 1
A86: 2 | B86: 1 | E86: 2 -4.300912 7.486322 -3.185410 | M86: 2 | N86: 1
A87: 1 | B87: 3 | E87: 3 -14.960486 8.592705 6.367781 | M87: 1 | N87: 3
A88: 1 | B88: 1 | E88: > #Pearson-Residuen | M88: 1 | N88: 1
A89: 1 | B89: 1 | E89: > testgrup$residuals | M89: 1 | N89: 1
A90: 1 | B90: 1 | E90: Gruppen$Arbeitsklima | M90: 1 | N90: 1
A91: 2 | B91: 1 | E91: Gruppen$Gruppenarbeit 1 2 3 | M91: 2 | N91: 1
A92: 2 | B92: 1 | E92: 1 2.1304640 -2.0086387 -0.7083774 | M92: 2 | N92: 1
A93: 1 | B93: 1 | E93: 2 -0.6390091 1.2562344 -0.9524439 | M93: 1 | N93: 1
A94: 3 | B94: 1 | E94: 3 -2.5302124 1.6413335 2.1673393 | M94: 3 | N94: 1
A95: 3 | B95: 3 | E95: > #standardisierte Pearson-Residuen | M95: 3 | N95: 3
A96: 2 | B96: 1 | E96: > testgrup$stdres | M96: 2 | N96: 1
A97: 1 | B97: 1 | E97: Gruppen$Arbeitsklima | M97: 1 | N97: 1
A98: 1 | B98: 2 | E98: Gruppen$Gruppenarbeit 1 2 3 | M98: 1 | N98: 2
A99: 3 | B99: 3 | E99: 1 4.248328 -3.641902 -1.073786 | M99: 3 | N99: 3
A100: 1 | B100: 1 | E100: 2 -1.056746 1.888934 -1.197325 | M100: 1 | N100: 1
A101: 1 | B101: 3 | E101: 3 -4.010373 2.365414 2.611344 | M101: 1 | N101: 3
A102: 1 | B102: 2 | M102: 1 | N102: 2
A103: 1 | B103: 1 | M103: 1 | N103: 1
A104: 1 | B104: 1 | M104: 1 | N104: 1
A105: 1 | B105: 2 | M105: 1 | N105: 2
A106: 1 | B106: 2 | M106: 1 | N106: 2
A107: 1 | B107: 1 | M107: 1 | N107: 1
A108: 1 | B108: 1 | M108: 1 | N108: 1
A109: 2 | B109: 1 | M109: 2 | N109: 1
A110: 3 | B110: 3 | M110: 3 | N110: 3
A111: 1 | B111: 1 | M111: 1 | N111: 1
A112: 3 | B112: 2 | M112: 3 | N112: 2
A113: 1 | B113: 2 | M113: 1 | N113: 2
A114: 1 | B114: 2 | M114: 1 | N114: 2
A115: 2 | B115: 1 | M115: 2 | N115: 1
A116: 3 | B116: 2 | M116: 3 | N116: 2
A117: 3 | B117: 2 | M117: 3 | N117: 2
A118: 1 | B118: 1 | M118: 1 | N118: 1
A119: 2 | B119: 2 | M119: 2 | N119: 2
A120: 1 | B120: 1 | M120: 1 | N120: 1
A121: 1 | B121: 2 | M121: 1 | N121: 2
A122: 1 | B122: 1 | M122: 1 | N122: 1
A123: 2 | B123: 2 | M123: 2 | N123: 2
A124: 1 | B124: 2 | M124: 1 | N124: 2
A125: 1 | B125: 3 | M125: 1 | N125: 3
A126: 3 | B126: 1 | M126: 3 | N126: 1
A127: 1 | B127: 2 | M127: 1 | N127: 2
A128: 2 | B128: 2 | M128: 2 | N128: 2
A129: 1 | B129: 3 | M129: 1 | N129: 3
A130: 1 | B130: 1 | M130: 1 | N130: 1
A131: 2 | B131: 1 | M131: 2 | N131: 1
A132: 1 | B132: 2 | M132: 1 | N132: 2
A133: 1 | B133: 2 | M133: 1 | N133: 2
A134: 1 | B134: 1 | M134: 1 | N134: 1
A135: 1 | B135: 1 | M135: 1 | N135: 1
A136: 1 | B136: 1 | M136: 1 | N136: 1
A137: 1 | B137: 1 | M137: 1 | N137: 1
A138: 3 | B138: 2 | M138: 3 | N138: 2
A139: 3 | B139: 2 | M139: 3 | N139: 2
A140: 3 | B140: 2 | M140: 3 | N140: 2
A141: 2 | B141: 2 | M141: 2 | N141: 2
A142: 1 | B142: 1 | M142: 1 | N142: 1
A143: 2 | B143: 1 | M143: 2 | N143: 1
A144: 1 | B144: 2 | M144: 1 | N144: 2
A145: 1 | B145: 2 | M145: 1 | N145: 2
A146: 1 | B146: 2 | M146: 1 | N146: 2
A147: 3 | B147: 1 | M147: 3 | N147: 1
A148: 1 | B148: 2 | M148: 1 | N148: 2
A149: 1 | B149: 1 | M149: 1 | N149: 1
A150: 1 | B150: 2 | M150: 1 | N150: 2
A151: 3 | B151: 1 | M151: 3 | N151: 1
A152: 3 | B152: 1 | M152: 3 | N152: 1
A153: 1 | B153: 1 | M153: 1 | N153: 1
A154: 2 | B154: 2 | M154: 2 | N154: 2
A155: 1 | B155: 1 | M155: 1 | N155: 1
A156: 1 | B156: 1 | M156: 1 | N156: 1
A157: 1 | B157: 2 | M157: 1 | N157: 2
A158: 2 | B158: 2 | M158: 2 | N158: 2
A159: 1 | B159: 1 | M159: 1 | N159: 1
A160: 2 | B160: 1 | M160: 2 | N160: 1
A161: 3 | B161: 1 | M161: 3 | N161: 1
A162: 2 | B162: 2 | M162: 2 | N162: 2
A163: 1 | B163: 1 | M163: 1 | N163: 1
A164: 2 | B164: 2 | M164: 2 | N164: 2
A165: 2 | B165: 3 | M165: 2 | N165: 3
A166: 1 | B166: 1 | M166: 1 | N166: 1
A167: 3 | B167: 3 | M167: 3 | N167: 3
A168: 1 | B168: 2 | M168: 1 | N168: 2
A169: 1 | B169: 2 | M169: 1 | N169: 2
A170: 2 | B170: 3 | M170: 2 | N170: 3
A171: 2 | B171: 1 | M171: 2 | N171: 1
A172: 1 | B172: 1 | M172: 1 | N172: 1
A173: 1 | B173: 2 | M173: 1 | N173: 2
A174: 2 | B174: 2 | M174: 2 | N174: 2
A175: 2 | B175: 3 | M175: 2 | N175: 3
A176: 1 | B176: 2 | M176: 1 | N176: 2
A177: 1 | B177: 3 | M177: 1 | N177: 3
A178: 1 | B178: 1 | M178: 1 | N178: 1
A179: 1 | B179: 1 | M179: 1 | N179: 1
A180: 1 | B180: 1 | M180: 1 | N180: 1
A181: 1 | B181: 1 | M181: 1 | N181: 1
A182: 1 | B182: 1 | M182: 1 | N182: 1
A183: 2 | B183: 2 | M183: 2 | N183: 2
A184: 1 | B184: 1 | M184: 1 | N184: 1
A185: 2 | B185: 2 | M185: 2 | N185: 2
A186: 2 | B186: 1 | M186: 2 | N186: 1
A187: 1 | B187: 1 | M187: 1 | N187: 1
A188: 1 | B188: 1 | M188: 1 | N188: 1
A189: 2 | B189: 3 | M189: 2 | N189: 3
A190: 3 | B190: 3 | M190: 3 | N190: 3
A191: 3 | B191: 2 | M191: 3 | N191: 2
A192: 1 | B192: 3 | M192: 1 | N192: 3
A193: 1 | B193: 3 | M193: 1 | N193: 3
A194: 2 | B194: 2 | M194: 2 | N194: 2
A195: 1 | B195: 1 | M195: 1 | N195: 1
A196: 2 | B196: 2 | M196: 2 | N196: 2
A197: 3 | B197: 1 | M197: 3 | N197: 1
A198: 2 | B198: 1 | M198: 2 | N198: 1
A199: 1 | B199: 1 | M199: 1 | N199: 1
A200: 3 | B200: 2 | M200: 3 | N200: 2
... 130 more rows

Sheet Uebung 3
A1: Geschlecht (1 Männer; 2 Frauen) | B1: Alter (1: < 20; 2: 21 - 35; 3: 36 - 50; 4: 51 - 65; 5 > 66) | C1: Einstellung (1 positive; 2 negative) | D1: Wohnort (1 Land; 2 Stadt; 3 Agglomeration) | H1: Lassen sich Gruppen herausfinden,
A2: 1 | B2: 5 | C2: 2 | D2: 1 | H2: die eine unterschiedliche Einstellung zum
A3: 2 | B3: 5 | C3: 2 | D3: 1 | H3: Produkt haben?
A4: 1 | B4: 4 | C4: 2 | D4: 1 | H4: (Alpha jeweils 0.05)
A5: 2 | B5: 4 | C5: 1 | D5: 1
A6: 2 | B6: 3 | C6: 2 | D6: 1
A7: 2 | B7: 2 | C7: 2 | D7: 3
A8: 2 | B8: 5 | C8: 2 | D8: 3
A9: 1 | B9: 1 | C9: 2 | D9: 1
A10: 1 | B10: 1 | C10: 1 | D10: 3
A11: 1 | B11: 2 | C11: 2 | D11: 3
A12: 2 | B12: 2 | C12: 2 | D12: 3
A13: 1 | B13: 1 | C13: 2 | D13: 3
A14: 2 | B14: 2 | C14: 1 | D14: 2
A15: 1 | B15: 3 | C15: 2 | D15: 2
A16: 1 | B16: 3 | C16: 2 | D16: 2
A17: 1 | B17: 4 | C17: 1 | D17: 2
A18: 1 | B18: 5 | C18: 2 | D18: 2
A19: 1 | B19: 1 | C19: 2 | D19: 3
A20: 1 | B20: 3 | C20: 1 | D20: 2
A21: 1 | B21: 2 | C21: 2 | D21: 3
A22: 1 | B22: 3 | C22: 2 | D22: 3
A23: 2 | B23: 2 | C23: 2 | D23: 2
A24: 1 | B24: 3 | C24: 2 | D24: 3
A25: 2 | B25: 4 | C25: 2 | D25: 3
A26: 2 | B26: 5 | C26: 2 | D26: 2
A27: 2 | B27: 3 | C27: 1 | D27: 2
A28: 2 | B28: 4 | C28: 1 | D28: 3
A29: 2 | B29: 2 | C29: 2 | D29: 2
A30: 2 | B30: 5 | C30: 2 | D30: 2
A31: 1 | B31: 1 | C31: 2 | D31: 3
A32: 1 | B32: 3 | C32: 2 | D32: 3
A33: 1 | B33: 3 | C33: 1 | D33: 3
A34: 2 | B34: 3 | C34: 2 | D34: 2
A35: 1 | B35: 4 | C35: 1 | D35: 2
A36: 2 | B36: 5 | C36: 2 | D36: 1
A37: 1 | B37: 5 | C37: 2 | D37: 1
A38: 2 | B38: 3 | C38: 2 | D38: 2
A39: 1 | B39: 3 | C39: 2 | D39: 2
A40: 1 | B40: 2 | C40: 2 | D40: 1
A41: 1 | B41: 2 | C41: 1 | D41: 1
A42: 1 | B42: 1 | C42: 1 | D42: 3
A43: 1 | B43: 5 | C43: 2 | D43: 2
A44: 2 | B44: 4 | C44: 1 | D44: 3
A45: 1 | B45: 1 | C45: 2 | D45: 2
A46: 1 | B46: 5 | C46: 2 | D46: 3
A47: 1 | B47: 2 | C47: 2 | D47: 3
A48: 1 | B48: 3 | C48: 2 | D48: 1
A49: 2 | B49: 2 | C49: 2 | D49: 1
A50: 2 | B50: 4 | C50: 2 | D50: 1
A51: 1 | B51: 3 | C51: 2 | D51: 2
A52: 2 | B52: 5 | C52: 2 | D52: 1
A53: 2 | B53: 1 | C53: 2 | D53: 1
A54: 2 | B54: 2 | C54: 1 | D54: 1
A55: 2 | B55: 3 | C55: 2 | D55: 1
A56: 1 | B56: 4 | C56: 1 | D56: 1
A57: 2 | B57: 2 | C57: 2 | D57: 2
A58: 1 | B58: 1 | C58: 2 | D58: 1
A59: 2 | B59: 2 | C59: 2 | D59: 2
A60: 2 | B60: 3 | C60: 2 | D60: 2
A61: 2 | B61: 2 | C61: 1 | D61: 2
A62: 2 | B62: 3 | C62: 2 | D62: 2
A63: 1 | B63: 2 | C63: 2 | D63: 2
A64: 2 | B64: 3 | C64: 2 | D64: 2
A65: 1 | B65: 1 | C65: 2 | D65: 2
A66: 2 | B66: 1 | C66: 2 | D66: 1
A67: 1 | B67: 5 | C67: 2 | D67: 1
A68: 2 | B68: 5 | C68: 2 | D68: 1
A69: 1 | B69: 5 | C69: 2 | D69: 1
A70: 2 | B70: 4 | C70: 2 | D70: 2
A71: 1 | B71: 5 | C71: 2 | D71: 3
A72: 1 | B72: 4 | C72: 2 | D72: 3
A73: 1 | B73: 5 | C73: 2 | D73: 3
A74: 1 | B74: 4 | C74: 2 | D74: 2
A75: 2 | B75: 5 | C75: 1 | D75: 3
A76: 1 | B76: 4 | C76: 2 | D76: 2
A77: 2 | B77: 5 | C77: 2 | D77: 3
A78: 1 | B78: 3 | C78: 1 | D78: 2
A79: 2 | B79: 4 | C79: 2 | D79: 3
A80: 1 | B80: 5 | C80: 1 | D80: 2
A81: 2 | B81: 4 | C81: 2 | D81: 3

Sheet Uebung 3 (2)
A1: Geschlecht (1 Männer; 2 Frauen) | B1: Alter (1: < 20; 2: 21 - 35; 3: 36 - 50; 4: 51 - 65; 5 > 66) | C1: Einstellung (1 positive; 2 negative) | D1: Wohnort (1 Land; 2 Stadt; 3 Agglomeration) | H1: Lassen sich Gruppen herausfinden, | M1: Geschlecht | N1: Alter | O1: Einstellung | P1: Wohnort
A2: 1 | B2: 5 | C2: 2 | D2: 1 | H2: die eine unterschiedliche Einstellung zum | M2: 1 | N2: 5 | O2: 2 | P2: 1
A3: 2 | B3: 5 | C3: 2 | D3: 1 | H3: Produkt haben? | M3: 2 | N3: 5 | O3: 2 | P3: 1
A4: 1 | B4: 4 | C4: 2 | D4: 1 | M4: 1 | N4: 4 | O4: 2 | P4: 1
A5: 2 | B5: 4 | C5: 1 | D5: 1 | M5: 2 | N5: 4 | O5: 1 | P5: 1
A6: 2 | B6: 3 | C6: 2 | D6: 1 | E6: Geschlecht * Einstellung | M6: 2 | N6: 3 | O6: 2 | P6: 1
A7: 2 | B7: 2 | C7: 2 | D7: 3 | M7: 2 | N7: 2 | O7: 2 | P7: 3
A8: 2 | B8: 5 | C8: 2 | D8: 3 | E8: H0: Es gibt keine geschlechtsspezifische Unterschiede in Bezug auf die Einstellung | M8: 2 | N8: 5 | O8: 2 | P8: 3
A9: 1 | B9: 1 | C9: 2 | D9: 1 | E9: HA. Esg gibt solche Unteschiede (Alpha = 0.05) | M9: 1 | N9: 1 | O9: 2 | P9: 1
A10: 1 | B10: 1 | C10: 1 | D10: 3 | M10: 1 | N10: 1 | O10: 1 | P10: 3
A11: 1 | B11: 2 | C11: 2 | D11: 3 | E11: beobachtete Häufigkeiten | M11: 1 | N11: 2 | O11: 2 | P11: 3
A12: 2 | B12: 2 | C12: 2 | D12: 3 | H12: positiv | I12: negativ | M12: 2 | N12: 2 | O12: 2 | P12: 3
A13: 1 | B13: 1 | C13: 2 | D13: 3 | H13: 1 | I13: 2 | J13: Randsummen | M13: 1 | N13: 1 | O13: 2 | P13: 3
A14: 2 | B14: 2 | C14: 1 | D14: 2 | E14: Geschlecht | F14: Männer | G14: 1 | H14: =SUM(IF(($A$2:$A$81=$G14)*($C$2:$C$81=H$13),1,0)) -> 10 | I14: =SUM(IF(($A$2:$A$81=$G14)*($C$2:$C$81=I$13),1,0)) -> 33 | J14: =SUM(H14:I14) -> 43 | M14: 2 | N14: 2 | O14: 1 | P14: 2
A15: 1 | B15: 3 | C15: 2 | D15: 2 | F15: Frauen | G15: 2 | H15: =SUM(IF(($A$2:$A$81=$G15)*($C$2:$C$81=H$13),1,0)) -> 8 | I15: =SUM(IF(($A$2:$A$81=$G15)*($C$2:$C$81=I$13),1,0)) -> 29 | J15: =SUM(H15:I15) -> 37 | M15: 1 | N15: 3 | O15: 2 | P15: 2
A16: 1 | B16: 3 | C16: 2 | D16: 2 | G16: Randsummen | H16: =SUM(H14:H15) -> 18 | I16: =SUM(I14:I15) -> 62 | J16: =SUM(J14:J15) -> 80 | M16: 1 | N16: 3 | O16: 2 | P16: 2
A17: 1 | B17: 4 | C17: 1 | D17: 2 | M17: 1 | N17: 4 | O17: 1 | P17: 2
A18: 1 | B18: 5 | C18: 2 | D18: 2 | M18: 1 | N18: 5 | O18: 2 | P18: 2
A19: 1 | B19: 1 | C19: 2 | D19: 3 | F19: zweiseitiger exakter Test von Fischer | M19: 1 | N19: 1 | O19: 2 | P19: 3
A20: 1 | B20: 3 | C20: 1 | D20: 2 | H20: Testwert 10 | M20: 1 | N20: 3 | O20: 1 | P20: 2
A21: 1 | B21: 2 | C21: 2 | D21: 3 | M21: 1 | N21: 2 | O21: 2 | P21: 3
A22: 1 | B22: 3 | C22: 2 | D22: 3 | H22: P(X >=10)= | I22: =1-_xlfn.HYPGEOM.DIST(9,43,18,80,1) -> 0.5388120676 | M22: 1 | N22: 3 | O22: 2 | P22: 3
A23: 2 | B23: 2 | C23: 2 | D23: 2 | H23: P(X <=10)= | I23: =_xlfn.HYPGEOM.DIST(H14,H16,J14,J16,1) -> 0.6695819043 | M23: 2 | N23: 2 | O23: 2 | P23: 2
A24: 1 | B24: 3 | C24: 2 | D24: 3 | M24: 1 | N24: 3 | O24: 2 | P24: 3
A25: 2 | B25: 4 | C25: 2 | D25: 3 | G25: p-Wert | H25: =ROUNDDOWN(MIN(I22:I23)*2,0) -> 1 | I25: (Befehl abrunden, weil p-Wert nicht grösser | M25: 2 | N25: 4 | O25: 2 | P25: 3
A26: 2 | B26: 5 | C26: 2 | D26: 2 | I26: als 1 sein kann) | M26: 2 | N26: 5 | O26: 2 | P26: 2
A27: 2 | B27: 3 | C27: 1 | D27: 2 | G27: kiene signifikante Unterschiede zwischen Geschlechtern | M27: 2 | N27: 3 | O27: 1 | P27: 2
A28: 2 | B28: 4 | C28: 1 | D28: 3 | M28: 2 | N28: 4 | O28: 1 | P28: 3
A29: 2 | B29: 2 | C29: 2 | D29: 2 | F29: Quotenverhältnis (OR): | H29: =10*29/(8*33) -> 1.098484848 | I29: (kaum von 1 verschieden) | M29: 2 | N29: 2 | O29: 2 | P29: 2
A30: 2 | B30: 5 | C30: 2 | D30: 2 | F30: ln(OR) | H30: =LN(H29) -> 0.09393181983 | M30: 2 | N30: 5 | O30: 2 | P30: 2
A31: 1 | B31: 1 | C31: 2 | D31: 3 | F31: s(ln(OR) | H31: =SQRT(1/H14+1/I14+1/H15+1/I15) -> 0.538317554 | M31: 1 | N31: 1 | O31: 2 | P31: 3
A32: 1 | B32: 3 | C32: 2 | D32: 3 | F32: untere Grenze 0.95-VI für OR | H32: =EXP(H30-1.96*H31) -> 0.3824449392 | M32: 1 | N32: 3 | O32: 2 | P32: 3
A33: 1 | B33: 3 | C33: 1 | D33: 3 | F33: obere Grenze 0.95-VI für OR | H33: =EXP(H30+1.96*H31) -> 3.15514428 | M33: 1 | N33: 3 | O33: 1 | P33: 3
A34: 2 | B34: 3 | C34: 2 | D34: 2 | H34: VI enthält 1, also nicht signifikante Abweichung | M34: 2 | N34: 3 | O34: 2 | P34: 2
A35: 1 | B35: 4 | C35: 1 | D35: 2 | H35: der OR von 1. | M35: 1 | N35: 4 | O35: 1 | P35: 2
A36: 2 | B36: 5 | C36: 2 | D36: 1 | M36: 2 | N36: 5 | O36: 2 | P36: 1
A37: 1 | B37: 5 | C37: 2 | D37: 1 | F37: Mit R: | M37: 1 | N37: 5 | O37: 2 | P37: 1
A38: 2 | B38: 3 | C38: 2 | D38: 2 | F38: > einst=read.table("clipboard",header=T) | M38: 2 | N38: 3 | O38: 2 | P38: 2
A39: 1 | B39: 3 | C39: 2 | D39: 2 | F39: > head(einst) | M39: 1 | N39: 3 | O39: 2 | P39: 2
A40: 1 | B40: 2 | C40: 2 | D40: 1 | F40: Geschlecht Alter Einstellung Wohnort | M40: 1 | N40: 2 | O40: 2 | P40: 1
A41: 1 | B41: 2 | C41: 1 | D41: 1 | F41: 1 1 5 2 1 | M41: 1 | N41: 2 | O41: 1 | P41: 1
A42: 1 | B42: 1 | C42: 1 | D42: 3 | F42: 2 2 5 2 1 | M42: 1 | N42: 1 | O42: 1 | P42: 3
A43: 1 | B43: 5 | C43: 2 | D43: 2 | F43: 3 1 4 2 1 | M43: 1 | N43: 5 | O43: 2 | P43: 2
A44: 2 | B44: 4 | C44: 1 | D44: 3 | F44: 4 2 4 1 1 | M44: 2 | N44: 4 | O44: 1 | P44: 3
A45: 1 | B45: 1 | C45: 2 | D45: 2 | F45: 5 2 3 2 1 | M45: 1 | N45: 1 | O45: 2 | P45: 2
A46: 1 | B46: 5 | C46: 2 | D46: 3 | F46: 6 2 2 2 3 | M46: 1 | N46: 5 | O46: 2 | P46: 3
A47: 1 | B47: 2 | C47: 2 | D47: 3 | F47: > tabGeschl=table(einst$Geschlecht,einst$Einstellung) | M47: 1 | N47: 2 | O47: 2 | P47: 3
A48: 1 | B48: 3 | C48: 2 | D48: 1 | F48: > rownames(tabGeschl)=c("Männer","Frauen") | M48: 1 | N48: 3 | O48: 2 | P48: 1
A49: 2 | B49: 2 | C49: 2 | D49: 1 | F49: > colnames(tabGeschl)=c("positiv","negativ") | M49: 2 | N49: 2 | O49: 2 | P49: 1
A50: 2 | B50: 4 | C50: 2 | D50: 1 | F50: > tabGeschl | M50: 2 | N50: 4 | O50: 2 | P50: 1
A51: 1 | B51: 3 | C51: 2 | D51: 2 | M51: 1 | N51: 3 | O51: 2 | P51: 2
A52: 2 | B52: 5 | C52: 2 | D52: 1 | F52: positiv negativ | M52: 2 | N52: 5 | O52: 2 | P52: 1
A53: 2 | B53: 1 | C53: 2 | D53: 1 | F53: Männer 10 33 | M53: 2 | N53: 1 | O53: 2 | P53: 1
A54: 2 | B54: 2 | C54: 1 | D54: 1 | F54: Frauen 8 29 | M54: 2 | N54: 2 | O54: 1 | P54: 1
A55: 2 | B55: 3 | C55: 2 | D55: 1 | F55: > fisher.test(tabGeschl) | M55: 2 | N55: 3 | O55: 2 | P55: 1
A56: 1 | B56: 4 | C56: 1 | D56: 1 | M56: 1 | N56: 4 | O56: 1 | P56: 1
A57: 2 | B57: 2 | C57: 2 | D57: 2 | F57: Fisher's Exact Test for Count Data | M57: 2 | N57: 2 | O57: 2 | P57: 2
A58: 1 | B58: 1 | C58: 2 | D58: 1 | M58: 1 | N58: 1 | O58: 2 | P58: 1
A59: 2 | B59: 2 | C59: 2 | D59: 2 | F59: data: tabGeschl | M59: 2 | N59: 2 | O59: 2 | P59: 2
A60: 2 | B60: 3 | C60: 2 | D60: 2 | F60: p-value = 1 | M60: 2 | N60: 3 | O60: 2 | P60: 2
A61: 2 | B61: 2 | C61: 1 | D61: 2 | F61: alternative hypothesis: true odds ratio is not equal to 1 | M61: 2 | N61: 2 | O61: 1 | P61: 2
A62: 2 | B62: 3 | C62: 2 | D62: 2 | F62: 95 percent confidence interval: | M62: 2 | N62: 3 | O62: 2 | P62: 2
A63: 1 | B63: 2 | C63: 2 | D63: 2 | F63: 0.3373753 3.6709607 | M63: 1 | N63: 2 | O63: 2 | P63: 2
A64: 2 | B64: 3 | C64: 2 | D64: 2 | F64: sample estimates: | M64: 2 | N64: 3 | O64: 2 | P64: 2
A65: 1 | B65: 1 | C65: 2 | D65: 2 | F65: odds ratio | M65: 1 | N65: 1 | O65: 2 | P65: 2
A66: 2 | B66: 1 | C66: 2 | D66: 1 | F66: 1.097192 | M66: 2 | N66: 1 | O66: 2 | P66: 1
A67: 1 | B67: 5 | C67: 2 | D67: 1 | M67: 1 | N67: 5 | O67: 2 | P67: 1
A68: 2 | B68: 5 | C68: 2 | D68: 1 | F68: Die OR und die VIs werden in R etwas anders berechnet. Verwenden Sie | M68: 2 | N68: 5 | O68: 2 | P68: 1
A69: 1 | B69: 5 | C69: 2 | D69: 1 | F69: jeweils die Variante des Programms, mit dem Sie rechnen. | M69: 1 | N69: 5 | O69: 2 | P69: 1
A70: 2 | B70: 4 | C70: 2 | D70: 2 | M70: 2 | N70: 4 | O70: 2 | P70: 2
A71: 1 | B71: 5 | C71: 2 | D71: 3 | M71: 1 | N71: 5 | O71: 2 | P71: 3
A72: 1 | B72: 4 | C72: 2 | D72: 3 | E72: Alter * Einstellung | H72: (hier wäre Testen von Gamma besser!!!!) | M72: 1 | N72: 4 | O72: 2 | P72: 3
A73: 1 | B73: 5 | C73: 2 | D73: 3 | M73: 1 | N73: 5 | O73: 2 | P73: 3
A74: 1 | B74: 4 | C74: 2 | D74: 2 | F74: H0: Es gibt keine alterspezifischen Unterschiede in Bezug auf die Einstellung | M74: 1 | N74: 4 | O74: 2 | P74: 2
A75: 2 | B75: 5 | C75: 1 | D75: 3 | F75: HA. Esg gibt solche Unteschiede (Alpha = 0.05) | M75: 2 | N75: 5 | O75: 1 | P75: 3
A76: 1 | B76: 4 | C76: 2 | D76: 2 | M76: 1 | N76: 4 | O76: 2 | P76: 2
A77: 2 | B77: 5 | C77: 2 | D77: 3 | M77: 2 | N77: 5 | O77: 2 | P77: 3
A78: 1 | B78: 3 | C78: 1 | D78: 2 | M78: 1 | N78: 3 | O78: 1 | P78: 2
A79: 2 | B79: 4 | C79: 2 | D79: 3 | E79: beobachtete Häufigkeiten | M79: 2 | N79: 4 | O79: 2 | P79: 3
A80: 1 | B80: 5 | C80: 1 | D80: 2 | G80: Alter | M80: 1 | N80: 5 | O80: 1 | P80: 2
A81: 2 | B81: 4 | C81: 2 | D81: 3 | G81: < 20 | H81: 21 - 53 | I81: 36 - 50 | J81: 51 - 65 | K81: >66 | M81: 2 | N81: 4 | O81: 2 | P81: 3
G82: 1 | H82: 2 | I82: 3 | J82: 4 | K82: 5 | L82: Randsummen
E83: positiv | F83: 1 | G83: =SUM(IF(($C$2:$C$81=$F83)*($B$2:$B$81=G$82),1,0)) -> 2 | H83: =SUM(IF(($C$2:$C$81=$F83)*($B$2:$B$81=H$82),1,0)) -> 4 | I83: =SUM(IF(($C$2:$C$81=$F83)*($B$2:$B$81=I$82),1,0)) -> 4 | J83: =SUM(IF(($C$2:$C$81=$F83)*($B$2:$B$81=J$82),1,0)) -> 6 | K83: =SUM(IF(($C$2:$C$81=$F83)*($B$2:$B$81=K$82),1,0)) -> 2 | L83: =SUM(G83:K83) -> 18
E84: negativ | F84: 2 | G84: =SUM(IF(($C$2:$C$81=$F84)*($B$2:$B$81=G$82),1,0)) -> 9 | H84: =SUM(IF(($C$2:$C$81=$F84)*($B$2:$B$81=H$82),1,0)) -> 12 | I84: =SUM(IF(($C$2:$C$81=$F84)*($B$2:$B$81=I$82),1,0)) -> 15 | J84: =SUM(IF(($C$2:$C$81=$F84)*($B$2:$B$81=J$82),1,0)) -> 9 | K84: =SUM(IF(($C$2:$C$81=$F84)*($B$2:$B$81=K$82),1,0)) -> 17 | L84: =SUM(G84:K84) -> 62
F85: Randsummen | G85: =SUM(G83:G84) -> 11 | H85: 16 | I85: 19 | J85: 15 | K85: 19 | L85: 80
E87: erwartete Häufigkeiten
G88: =(G$85*$L83/$L$85) -> 2.475 | H88: 3.6 | I88: 4.275 | J88: 3.375 | K88: 4.275
G89: 8.525 | H89: 12.4 | I89: 14.725 | J89: 11.625 | K89: 14.725
F91: Achtung: in 5 von 10 Zellen sind erwarteten Häufigkeiten < 5; Chi-Quadrat-Test darf nicht
F92: angewendet werden.
F94: deshalb exakter Test von Fisher mit Excel - der auf verallgemeinerter hypergeometrischer Verteilung beruht
F95: > fisher.test(table(einst$Einstellung,einst$Alter))
F97: Fisher's Exact Test for Count Data
F99: data: table(einst$Einstellung, einst$Alter)
F100: p-value = 0.3761
F101: alternative hypothesis: two.sided
G102: Keine signfikante Unterschiede
E106: Mit Gamma:
F107: gamma.test(einst$Einstellung,einst$Alter)
F109: Bivariate test of Gamma
F111: data:
F112: z = 0.32079, p-value = 0.7484
F113: alternative hypothesis: two.sided
F114: null values:
F115: [1] "Gamma = 0" ""
F116: 95 percent confidence interval:
F117: -0.2832510 0.3941157
F118: sample estimates:
F119: Gamma: standard error of Gamma:
F120: 0.05543237 0.17280079
F122: Auch hier keine signifikante Abweichung Gammas von 0.
F124: Mit der Bootstrap-Methode:
F125: > gamma.test(einst$Einstellung,einst$Alter,bootstrap =T)
F126: [1] Quantiles Bootstrap Method:
F127: 2.5% 97.5%
F128: -0.2286686 0.3319136
F129: [1] Bootstrap Confidence Interval:
F130: 2.5% 97.5%
F131: -0.2210489 0.3395334
E135: Wohnhort * Einstellung
E137: H0: Es gibt keine wohnortsspezifische Unterschiede bezüglich Einstelllung
E138: HA: Es gibt solche.
E140: beobachtete Häufigkeiten
G141: positiv | H141: negativ
G142: 1 | H142: 2 | I142: Randsummen
E143: Land | F143: 1 | G143: =SUM(IF(($D$2:$D$81=$F143)*($C$2:$C$81=G$142),1,0)) -> 4 | H143: =SUM(IF(($D$2:$D$81=$F143)*($C$2:$C$81=H$142),1,0)) -> 19 | I143: =SUM(G143:H143) -> 23
E144: Stadt | F144: 2 | G144: =SUM(IF(($D$2:$D$81=$F144)*($C$2:$C$81=G$142),1,0)) -> 8 | H144: =SUM(IF(($D$2:$D$81=$F144)*($C$2:$C$81=H$142),1,0)) -> 23 | I144: =SUM(G144:H144) -> 31
E145: Aglo | F145: 3 | G145: =SUM(IF(($D$2:$D$81=$F145)*($C$2:$C$81=G$142),1,0)) -> 6 | H145: =SUM(IF(($D$2:$D$81=$F145)*($C$2:$C$81=H$142),1,0)) -> 20 | I145: =SUM(G145:H145) -> 26
F146: Randsummen | G146: =SUM(G143:G145) -> 18 | H146: =SUM(H143:H145) -> 62 | I146: =SUM(G143:H145) -> 80
E148: erwartete Häufigkeiten
G149: =(G$146*$I143/$I$146) -> 5.175 | H149: 17.825
G150: 6.975 | H150: 24.025
G151: 5.85 | H151: 20.15
I152: =SUM(G149:H151) -> 80
E154: Summanden der Teststatistik
G155: =(G143-G149)^2/G149 -> 0.2667874396 | H155: 0.07745441795
G156: 0.1506272401 | H156: 0.04373048907
G157: 0.003846153846 | H157: 0.00111662531
H158: Testwert | I158: =SUM(G155:H157) -> 0.5435623659
H159: p-Wert | I159: =1-_xlfn.CHISQ.DIST(I158,2,1) -> 0.762020986
G160: nicht singifikante Abweichungen
E162: Mit R:
E163: > tabwohn=table(einst$Wohnort,einst$Einstellung)
E164: >
E165: > colnames(tabwohn)=c("positiv","negativ")
E166: > rownames(tabwohn)=c("Land","Stadt","Aglo")
E167: > tabwohn
E169: positiv negativ
E170: Land 4 19
E171: Stadt 8 23
E172: Aglo 6 20
E173: >
E174: > wohntest=chisq.test(tabwohn)
E175: > wohntest
E177: Pearson's Chi-squared test
E179: data: tabwohn
E180: X-squared = 0.54356, df = 2, p-value = 0.762
E182: > wohntest$residuals
E184: positiv negativ
E185: Land -0.51651470 0.27830634
E186: Stadt 0.38810725 -0.20911836
E187: Aglo 0.06201737 -0.03341594
E188: > wohntest$stdres
E190: positiv negativ
E191: Land -0.69508738 0.69508738
E192: Stadt 0.56331052 -0.56331052
E193: Aglo 0.08574535 -0.08574535
F195: keine Zellen mit signifikanten Abweichungen

Sheet Uebung 4
A1: Alter (<=30, 30- 40, 40 - 60, 60 - 100) | B1: Einstellung (dafür 1, eher dafür 2, weiss nicht 3, eher dagegen 4, dagegen 5)
A2: 1 | B2: 1
A3: 1 | B3: 1 | D3: Gibt es Unterschiede bezüglich der 4 Kategorien Alter-Geschlecht?
A4: 1 | B4: 1 | D4: Bemerkung: Es wäre besser, die Daten in drei Variablen zu
A5: 1 | B5: 1 | D5: erheben (Alter, Geschlecht und Einstellung).
A6: 1 | B6: 1 | D6: Es gibt multivariate Verfahren, um drei Variablen zusammen zu analysieren
A7: 1 | B7: 1 | D7: analysieren.
A8: 1 | B8: 1
A9: 1 | B9: 1
A10: 1 | B10: 1
A11: 1 | B11: 1
A12: 1 | B12: 1
A13: 1 | B13: 1
A14: 1 | B14: 1
A15: 1 | B15: 1
A16: 1 | B16: 1
A17: 1 | B17: 1
A18: 1 | B18: 1
A19: 1 | B19: 1
A20: 1 | B20: 1
A21: 1 | B21: 1
A22: 1 | B22: 1
A23: 1 | B23: 1
A24: 1 | B24: 1
A25: 1 | B25: 1
A26: 1 | B26: 1
A27: 1 | B27: 1
A28: 1 | B28: 1
A29: 1 | B29: 1
A30: 1 | B30: 1
A31: 1 | B31: 1
A32: 1 | B32: 1
A33: 1 | B33: 1
A34: 1 | B34: 1
A35: 1 | B35: 1
A36: 1 | B36: 1
A37: 1 | B37: 1
A38: 1 | B38: 1
A39: 1 | B39: 1
A40: 1 | B40: 1
A41: 1 | B41: 1
A42: 1 | B42: 1
A43: 1 | B43: 1
A44: 1 | B44: 1
A45: 1 | B45: 1
A46: 1 | B46: 1
A47: 1 | B47: 1
A48: 1 | B48: 1
A49: 1 | B49: 1
A50: 1 | B50: 1
A51: 1 | B51: 1
A52: 1 | B52: 2
A53: 1 | B53: 2
A54: 1 | B54: 2
A55: 1 | B55: 2
A56: 1 | B56: 2
A57: 1 | B57: 2
A58: 1 | B58: 2
A59: 1 | B59: 2
A60: 1 | B60: 2
A61: 1 | B61: 2
A62: 1 | B62: 2
A63: 1 | B63: 2
A64: 1 | B64: 2
A65: 1 | B65: 2
A66: 1 | B66: 2
A67: 1 | B67: 2
A68: 1 | B68: 2
A69: 1 | B69: 2
A70: 1 | B70: 2
A71: 1 | B71: 2
A72: 1 | B72: 2
A73: 1 | B73: 2
A74: 1 | B74: 2
A75: 1 | B75: 2
A76: 1 | B76: 2
A77: 1 | B77: 2
A78: 1 | B78: 2
A79: 1 | B79: 2
A80: 1 | B80: 2
A81: 1 | B81: 2
A82: 1 | B82: 3
A83: 1 | B83: 3
A84: 1 | B84: 3
A85: 1 | B85: 3
A86: 1 | B86: 3
A87: 1 | B87: 3
A88: 1 | B88: 3
A89: 1 | B89: 3
A90: 1 | B90: 3
A91: 1 | B91: 3
A92: 1 | B92: 3
A93: 1 | B93: 3
A94: 1 | B94: 3
A95: 1 | B95: 3
A96: 1 | B96: 3
A97: 1 | B97: 3
A98: 1 | B98: 3
A99: 1 | B99: 3
A100: 1 | B100: 3
A101: 1 | B101: 3
A102: 1 | B102: 4
A103: 1 | B103: 4
A104: 1 | B104: 4
A105: 1 | B105: 4
A106: 1 | B106: 4
A107: 1 | B107: 4
A108: 1 | B108: 4
A109: 1 | B109: 4
A110: 1 | B110: 4
A111: 1 | B111: 4
A112: 1 | B112: 5
A113: 1 | B113: 5
A114: 1 | B114: 5
A115: 1 | B115: 5
A116: 1 | B116: 5
A117: 2 | B117: 1
A118: 2 | B118: 1
A119: 2 | B119: 1
A120: 2 | B120: 1
A121: 2 | B121: 1
A122: 2 | B122: 1
A123: 2 | B123: 1
A124: 2 | B124: 1
A125: 2 | B125: 1
A126: 2 | B126: 1
A127: 2 | B127: 1
A128: 2 | B128: 1
A129: 2 | B129: 1
A130: 2 | B130: 1
A131: 2 | B131: 1
A132: 2 | B132: 1
A133: 2 | B133: 1
A134: 2 | B134: 1
A135: 2 | B135: 1
A136: 2 | B136: 1
A137: 2 | B137: 1
A138: 2 | B138: 1
A139: 2 | B139: 1
A140: 2 | B140: 1
A141: 2 | B141: 1
A142: 2 | B142: 1
A143: 2 | B143: 1
A144: 2 | B144: 1
A145: 2 | B145: 1
A146: 2 | B146: 1
A147: 2 | B147: 1
A148: 2 | B148: 1
A149: 2 | B149: 1
A150: 2 | B150: 1
A151: 2 | B151: 1
A152: 2 | B152: 1
A153: 2 | B153: 1
A154: 2 | B154: 1
A155: 2 | B155: 1
A156: 2 | B156: 1
A157: 2 | B157: 2
A158: 2 | B158: 2
A159: 2 | B159: 2
A160: 2 | B160: 2
A161: 2 | B161: 2
A162: 2 | B162: 2
A163: 2 | B163: 2
A164: 2 | B164: 2
A165: 2 | B165: 2
A166: 2 | B166: 2
A167: 2 | B167: 2
A168: 2 | B168: 2
A169: 2 | B169: 2
A170: 2 | B170: 2
A171: 2 | B171: 2
A172: 2 | B172: 2
A173: 2 | B173: 2
A174: 2 | B174: 2
A175: 2 | B175: 2
A176: 2 | B176: 2
A177: 2 | B177: 2
A178: 2 | B178: 2
A179: 2 | B179: 2
A180: 2 | B180: 2
A181: 2 | B181: 2
A182: 2 | B182: 2
A183: 2 | B183: 2
A184: 2 | B184: 2
A185: 2 | B185: 2
A186: 2 | B186: 2
A187: 2 | B187: 3
A188: 2 | B188: 3
A189: 2 | B189: 3
A190: 2 | B190: 3
A191: 2 | B191: 3
A192: 2 | B192: 3
A193: 2 | B193: 3
A194: 2 | B194: 3
A195: 2 | B195: 3
A196: 2 | B196: 3
A197: 2 | B197: 3
A198: 2 | B198: 3
A199: 2 | B199: 3
A200: 2 | B200: 3
... 281 more rows

Sheet Uebung 4 (2)
A1: Alter (<=30, 30- 40, 40 - 60, 60 - 100) | B1: Einstellung (dafür 1, eher dafür 2, weiss nicht 3, eher dagegen 4, dagegen 5) | N1: Alter | O1: Einstellung
A2: 1 | B2: 1 | N2: 1 | O2: 1
A3: 1 | B3: 1 | D3: Gibt es Unterschiede bezüglich der 4 Kategorien Alter-Geschlecht? | N3: 1 | O3: 1
A4: 1 | B4: 1 | D4: Bemerkung: Es wäre besser, die Daten in drei Variablen zu | N4: 1 | O4: 1
A5: 1 | B5: 1 | D5: erheben (Alter, Geschlecht und Einstellung). | N5: 1 | O5: 1
A6: 1 | B6: 1 | D6: Es gibt multivariate Verfahren, um drei Variablen zusammen zu analysieren | N6: 1 | O6: 1
A7: 1 | B7: 1 | D7: analysieren. | N7: 1 | O7: 1
A8: 1 | B8: 1 | N8: 1 | O8: 1
A9: 1 | B9: 1 | D9: H0: Es gibt keine Unterschiede zwischen beobachteten und erwarteten Häufigkeiten | N9: 1 | O9: 1
A10: 1 | B10: 1 | D10: HA: Esg ibt solche Unterschiede (Alphha = 0.05) | N10: 1 | O10: 1
A11: 1 | B11: 1 | N11: 1 | O11: 1
A12: 1 | B12: 1 | N12: 1 | O12: 1
A13: 1 | B13: 1 | D13: beobachtete Häufigkeiten | N13: 1 | O13: 1
A14: 1 | B14: 1 | G14: <=30 | H14: 30 - 40 | I14: 40 - 60 | J14: 60 - 100 | N14: 1 | O14: 1
A15: 1 | B15: 1 | G15: 1 | H15: 2 | I15: 3 | J15: 4 | K15: Randsummen | N15: 1 | O15: 1
A16: 1 | B16: 1 | D16: dafür | F16: 1 | G16: =SUM(IF(($B$2:$B$481=$F16)*($A$2:$A$481=G$15),1,0)) -> 50 | H16: =SUM(IF(($B$2:$B$481=$F16)*($A$2:$A$481=H$15),1,0)) -> 40 | I16: =SUM(IF(($B$2:$B$481=$F16)*($A$2:$A$481=I$15),1,0)) -> 60 | J16: =SUM(IF(($B$2:$B$481=$F16)*($A$2:$A$481=J$15),1,0)) -> 50 | K16: =SUM(G16:J16) -> 200 | N16: 1 | O16: 1
A17: 1 | B17: 1 | D17: eher dafür | F17: 2 | G17: =SUM(IF(($B$2:$B$481=$F17)*($A$2:$A$481=G$15),1,0)) -> 30 | H17: =SUM(IF(($B$2:$B$481=$F17)*($A$2:$A$481=H$15),1,0)) -> 30 | I17: =SUM(IF(($B$2:$B$481=$F17)*($A$2:$A$481=I$15),1,0)) -> 40 | J17: =SUM(IF(($B$2:$B$481=$F17)*($A$2:$A$481=J$15),1,0)) -> 40 | K17: 140 | N17: 1 | O17: 1
A18: 1 | B18: 1 | D18: weiss nicht | F18: 3 | G18: =SUM(IF(($B$2:$B$481=$F18)*($A$2:$A$481=G$15),1,0)) -> 20 | H18: =SUM(IF(($B$2:$B$481=$F18)*($A$2:$A$481=H$15),1,0)) -> 30 | I18: =SUM(IF(($B$2:$B$481=$F18)*($A$2:$A$481=I$15),1,0)) -> 10 | J18: =SUM(IF(($B$2:$B$481=$F18)*($A$2:$A$481=J$15),1,0)) -> 5 | K18: 65 | N18: 1 | O18: 1
A19: 1 | B19: 1 | D19: eher dagegen | F19: 4 | G19: =SUM(IF(($B$2:$B$481=$F19)*($A$2:$A$481=G$15),1,0)) -> 10 | H19: =SUM(IF(($B$2:$B$481=$F19)*($A$2:$A$481=H$15),1,0)) -> 20 | I19: =SUM(IF(($B$2:$B$481=$F19)*($A$2:$A$481=I$15),1,0)) -> 5 | J19: =SUM(IF(($B$2:$B$481=$F19)*($A$2:$A$481=J$15),1,0)) -> 10 | K19: 45 | N19: 1 | O19: 1
A20: 1 | B20: 1 | D20: dagegen | F20: 5 | G20: =SUM(IF(($B$2:$B$481=$F20)*($A$2:$A$481=G$15),1,0)) -> 5 | H20: =SUM(IF(($B$2:$B$481=$F20)*($A$2:$A$481=H$15),1,0)) -> 10 | I20: =SUM(IF(($B$2:$B$481=$F20)*($A$2:$A$481=I$15),1,0)) -> 5 | J20: =SUM(IF(($B$2:$B$481=$F20)*($A$2:$A$481=J$15),1,0)) -> 10 | K20: 30 | N20: 1 | O20: 1
A21: 1 | B21: 1 | F21: Randsummen | G21: =SUM(G16:G20) -> 115 | H21: =SUM(H16:H20) -> 130 | I21: =SUM(I16:I20) -> 120 | J21: =SUM(J16:J20) -> 115 | K21: 480 | N21: 1 | O21: 1
A22: 1 | B22: 1 | N22: 1 | O22: 1
A23: 1 | B23: 1 | N23: 1 | O23: 1
A24: 1 | B24: 1 | D24: erwartete Häufigkeiten | G24: =G$21*$K16/$K$21 -> 47.91666667 | H24: 54.16666667 | I24: 50 | J24: 47.91666667 | K24: =SUM(G24:J24) -> 200 | N24: 1 | O24: 1
A25: 1 | B25: 1 | G25: 33.54166667 | H25: 37.91666667 | I25: 35 | J25: 33.54166667 | K25: =SUM(G25:J25) -> 140 | N25: 1 | O25: 1
A26: 1 | B26: 1 | G26: 15.57291667 | H26: 17.60416667 | I26: 16.25 | J26: 15.57291667 | K26: =SUM(G26:J26) -> 65 | N26: 1 | O26: 1
A27: 1 | B27: 1 | G27: 10.78125 | H27: 12.1875 | I27: 11.25 | J27: 10.78125 | K27: =SUM(G27:J27) -> 45 | N27: 1 | O27: 1
A28: 1 | B28: 1 | G28: 7.1875 | H28: 8.125 | I28: 7.5 | J28: 7.1875 | K28: =SUM(G28:J28) -> 30 | N28: 1 | O28: 1
A29: 1 | B29: 1 | F29: Randsummen | G29: =SUM(G24:G28) -> 115 | H29: =SUM(H24:H28) -> 130 | I29: =SUM(I24:I28) -> 120 | J29: =SUM(J24:J28) -> 115 | K29: =SUM(K24:K28) -> 480 | N29: 1 | O29: 1
A30: 1 | B30: 1 | N30: 1 | O30: 1
A31: 1 | B31: 1 | N31: 1 | O31: 1
A32: 1 | B32: 1 | D32: Summanden der Teststatistik | G32: =(G16-G24)^2/G24 -> 0.09057971014 | H32: 3.705128205 | I32: 2 | J32: 0.09057971014 | N32: 1 | O32: 1
A33: 1 | B33: 1 | G33: 0.3739648033 | H33: 1.652930403 | I33: 0.7142857143 | J33: 1.243530021 | N33: 1 | O33: 1
A34: 1 | B34: 1 | G34: 1.258535396 | H34: 8.728427022 | I34: 2.403846154 | J34: 7.178267837 | N34: 1 | O34: 1
A35: 1 | B35: 1 | G35: 0.05661231884 | H35: 5.008012821 | I35: 3.472222222 | J35: 0.05661231884 | N35: 1 | O35: 1
A36: 1 | B36: 1 | G36: 0.6657608696 | H36: 0.4326923077 | I36: 0.8333333333 | J36: 1.100543478 | N36: 1 | O36: 1
A37: 1 | B37: 1 | J37: Testwert | K37: =SUM(G32:J36) -> 41.06586464 | N37: 1 | O37: 1
A38: 1 | B38: 1 | J38: p-Wert | K38: =1-_xlfn.CHISQ.DIST(K37,12,1) -> 4.777558002e-05 | N38: 1 | O38: 1
A39: 1 | B39: 1 | H39: signifikante Abweichung der Häufigkiten | N39: 1 | O39: 1
A40: 1 | B40: 1 | N40: 1 | O40: 1
A41: 1 | B41: 1 | N41: 1 | O41: 1
A42: 1 | B42: 1 | D42: Analyse mit Residuen s. folgende R-Ergebnisse: | N42: 1 | O42: 1
A43: 1 | B43: 1 | N43: 1 | O43: 1
A44: 1 | B44: 1 | N44: 1 | O44: 1
A45: 1 | B45: 1 | N45: 1 | O45: 1
A46: 1 | B46: 1 | N46: 1 | O46: 1
A47: 1 | B47: 1 | D47: Mit R: | N47: 1 | O47: 1
A48: 1 | B48: 1 | D48: > altein=read.table("clipboard",header=T) | N48: 1 | O48: 1
A49: 1 | B49: 1 | D49: > head(altein) | N49: 1 | O49: 1
A50: 1 | B50: 1 | D50: Alter Einstellung | N50: 1 | O50: 1
A51: 1 | B51: 1 | D51: 1 1 1 | N51: 1 | O51: 1
A52: 1 | B52: 2 | D52: 2 1 1 | N52: 1 | O52: 2
A53: 1 | B53: 2 | D53: 3 1 1 | N53: 1 | O53: 2
A54: 1 | B54: 2 | D54: 4 1 1 | N54: 1 | O54: 2
A55: 1 | B55: 2 | D55: 5 1 1 | N55: 1 | O55: 2
A56: 1 | B56: 2 | D56: 6 1 1 | N56: 1 | O56: 2
A57: 1 | B57: 2 | D57: > tabAE=table(altein$Einstellung,altein$Alter) | N57: 1 | O57: 2
A58: 1 | B58: 2 | D58: > colnames(tabAE)=c("<= 30","30-40","40-60", "60-100") | N58: 1 | O58: 2
A59: 1 | B59: 2 | D59: > rownames(tabAE)=c("dafür","eher dafür", "weiss nicht","eher dagegen", "dagegen") | N59: 1 | O59: 2
A60: 1 | B60: 2 | D60: > tabAE | N60: 1 | O60: 2
A61: 1 | B61: 2 | N61: 1 | O61: 2
A62: 1 | B62: 2 | D62: <= 30 30-40 40-60 60-100 | N62: 1 | O62: 2
A63: 1 | B63: 2 | D63: dafür 50 40 60 50 | N63: 1 | O63: 2
A64: 1 | B64: 2 | D64: eher dafür 30 30 40 40 | N64: 1 | O64: 2
A65: 1 | B65: 2 | D65: weiss nicht 20 30 10 5 | N65: 1 | O65: 2
A66: 1 | B66: 2 | D66: eher dagegen 10 20 5 10 | N66: 1 | O66: 2
A67: 1 | B67: 2 | D67: dagegen 5 10 5 10 | N67: 1 | O67: 2
A68: 1 | B68: 2 | D68: > testAE=chisq.test(tabAE) | N68: 1 | O68: 2
A69: 1 | B69: 2 | D69: > testAE | N69: 1 | O69: 2
A70: 1 | B70: 2 | N70: 1 | O70: 2
A71: 1 | B71: 2 | D71: Pearson's Chi-squared test | N71: 1 | O71: 2
A72: 1 | B72: 2 | N72: 1 | O72: 2
A73: 1 | B73: 2 | D73: data: tabAE | N73: 1 | O73: 2
A74: 1 | B74: 2 | D74: X-squared = 41.066, df = 12, p-value = 4.778e-05 | N74: 1 | O74: 2
A75: 1 | B75: 2 | N75: 1 | O75: 2
A76: 1 | B76: 2 | D76: > testAE$residuals | N76: 1 | O76: 2
A77: 1 | B77: 2 | N77: 1 | O77: 2
A78: 1 | B78: 2 | D78: <= 30 30-40 40-60 60-100 | N78: 1 | O78: 2
A79: 1 | B79: 2 | D79: dafür 0.3009646 -1.9248710 1.4142136 0.3009646 | N79: 1 | O79: 2
A80: 1 | B80: 2 | D80: eher dafür -0.6115266 -1.2856634 0.8451543 1.1151368 | N80: 1 | O80: 2
A81: 1 | B81: 2 | D81: weiss nicht 1.1218446 2.9543911 -1.5504342 -2.6792290 | N81: 1 | O81: 2
A82: 1 | B82: 3 | D82: eher dagegen -0.2379334 2.2378590 -1.8633900 -0.2379334 | N82: 1 | O82: 3
A83: 1 | B83: 3 | D83: dagegen -0.8159417 0.6577935 -0.9128709 1.0490679 | N83: 1 | O83: 3
A84: 1 | B84: 3 | D84: > testAE$stdres | N84: 1 | O84: 3
A85: 1 | B85: 3 | N85: 1 | O85: 3
A86: 1 | B86: 3 | D86: <= 30 30-40 40-60 60-100 | N86: 1 | O86: 3
A87: 1 | B87: 3 | D87: dafür 0.4518885 -2.9514119 2.1380899 0.4518885 | N87: 1 | O87: 3
A88: 1 | B88: 3 | D88: eher dafür -0.8332412 -1.7889370 1.1595421 1.5194397 | N88: 1 | O88: 3
A89: 1 | B89: 3 | D89: weiss nicht 1.3835774 3.7209271 -1.9253925 -3.3043085 | N89: 1 | O89: 3
A90: 1 | B90: 3 | D90: eher dagegen -0.2866194 2.7529309 -2.2602117 -0.2866194 | N90: 1 | O90: 3
A91: 1 | B91: 3 | D91: dagegen -0.9663794 0.7955923 -1.0886621 1.2424878 | N91: 1 | O91: 3
A92: 1 | B92: 3 | N92: 1 | O92: 3
A93: 1 | B93: 3 | N93: 1 | O93: 3
A94: 1 | B94: 3 | D94: Es gibt signifikante Abweichungen in (1,2), (1,3), (3,2), (3,4), (4,2), (4,3) | N94: 1 | O94: 3
A95: 1 | B95: 3 | N95: 1 | O95: 3
A96: 1 | B96: 3 | N96: 1 | O96: 3
A97: 1 | B97: 3 | N97: 1 | O97: 3
A98: 1 | B98: 3 | N98: 1 | O98: 3
A99: 1 | B99: 3 | N99: 1 | O99: 3
A100: 1 | B100: 3 | N100: 1 | O100: 3
A101: 1 | B101: 3 | N101: 1 | O101: 3
A102: 1 | B102: 4 | N102: 1 | O102: 4
A103: 1 | B103: 4 | N103: 1 | O103: 4
A104: 1 | B104: 4 | N104: 1 | O104: 4
A105: 1 | B105: 4 | N105: 1 | O105: 4
A106: 1 | B106: 4 | N106: 1 | O106: 4
A107: 1 | B107: 4 | N107: 1 | O107: 4
A108: 1 | B108: 4 | N108: 1 | O108: 4
A109: 1 | B109: 4 | N109: 1 | O109: 4
A110: 1 | B110: 4 | N110: 1 | O110: 4
A111: 1 | B111: 4 | N111: 1 | O111: 4
A112: 1 | B112: 5 | N112: 1 | O112: 5
A113: 1 | B113: 5 | N113: 1 | O113: 5
A114: 1 | B114: 5 | N114: 1 | O114: 5
A115: 1 | B115: 5 | N115: 1 | O115: 5
A116: 1 | B116: 5 | N116: 1 | O116: 5
A117: 2 | B117: 1 | N117: 2 | O117: 1
A118: 2 | B118: 1 | N118: 2 | O118: 1
A119: 2 | B119: 1 | N119: 2 | O119: 1
A120: 2 | B120: 1 | N120: 2 | O120: 1
A121: 2 | B121: 1 | N121: 2 | O121: 1
A122: 2 | B122: 1 | N122: 2 | O122: 1
A123: 2 | B123: 1 | N123: 2 | O123: 1
A124: 2 | B124: 1 | N124: 2 | O124: 1
A125: 2 | B125: 1 | N125: 2 | O125: 1
A126: 2 | B126: 1 | N126: 2 | O126: 1
A127: 2 | B127: 1 | N127: 2 | O127: 1
A128: 2 | B128: 1 | N128: 2 | O128: 1
A129: 2 | B129: 1 | N129: 2 | O129: 1
A130: 2 | B130: 1 | N130: 2 | O130: 1
A131: 2 | B131: 1 | N131: 2 | O131: 1
A132: 2 | B132: 1 | N132: 2 | O132: 1
A133: 2 | B133: 1 | N133: 2 | O133: 1
A134: 2 | B134: 1 | N134: 2 | O134: 1
A135: 2 | B135: 1 | N135: 2 | O135: 1
A136: 2 | B136: 1 | N136: 2 | O136: 1
A137: 2 | B137: 1 | N137: 2 | O137: 1
A138: 2 | B138: 1 | N138: 2 | O138: 1
A139: 2 | B139: 1 | N139: 2 | O139: 1
A140: 2 | B140: 1 | N140: 2 | O140: 1
A141: 2 | B141: 1 | N141: 2 | O141: 1
A142: 2 | B142: 1 | N142: 2 | O142: 1
A143: 2 | B143: 1 | N143: 2 | O143: 1
A144: 2 | B144: 1 | N144: 2 | O144: 1
A145: 2 | B145: 1 | N145: 2 | O145: 1
A146: 2 | B146: 1 | N146: 2 | O146: 1
A147: 2 | B147: 1 | N147: 2 | O147: 1
A148: 2 | B148: 1 | N148: 2 | O148: 1
A149: 2 | B149: 1 | N149: 2 | O149: 1
A150: 2 | B150: 1 | N150: 2 | O150: 1
A151: 2 | B151: 1 | N151: 2 | O151: 1
A152: 2 | B152: 1 | N152: 2 | O152: 1
A153: 2 | B153: 1 | N153: 2 | O153: 1
A154: 2 | B154: 1 | N154: 2 | O154: 1
A155: 2 | B155: 1 | N155: 2 | O155: 1
A156: 2 | B156: 1 | N156: 2 | O156: 1
A157: 2 | B157: 2 | N157: 2 | O157: 2
A158: 2 | B158: 2 | N158: 2 | O158: 2
A159: 2 | B159: 2 | N159: 2 | O159: 2
A160: 2 | B160: 2 | N160: 2 | O160: 2
A161: 2 | B161: 2 | N161: 2 | O161: 2
A162: 2 | B162: 2 | N162: 2 | O162: 2
A163: 2 | B163: 2 | N163: 2 | O163: 2
A164: 2 | B164: 2 | N164: 2 | O164: 2
A165: 2 | B165: 2 | N165: 2 | O165: 2
A166: 2 | B166: 2 | N166: 2 | O166: 2
A167: 2 | B167: 2 | N167: 2 | O167: 2
A168: 2 | B168: 2 | N168: 2 | O168: 2
A169: 2 | B169: 2 | N169: 2 | O169: 2
A170: 2 | B170: 2 | N170: 2 | O170: 2
A171: 2 | B171: 2 | N171: 2 | O171: 2
A172: 2 | B172: 2 | N172: 2 | O172: 2
A173: 2 | B173: 2 | N173: 2 | O173: 2
A174: 2 | B174: 2 | N174: 2 | O174: 2
A175: 2 | B175: 2 | N175: 2 | O175: 2
A176: 2 | B176: 2 | N176: 2 | O176: 2
A177: 2 | B177: 2 | N177: 2 | O177: 2
A178: 2 | B178: 2 | N178: 2 | O178: 2
A179: 2 | B179: 2 | N179: 2 | O179: 2
A180: 2 | B180: 2 | N180: 2 | O180: 2
A181: 2 | B181: 2 | N181: 2 | O181: 2
A182: 2 | B182: 2 | N182: 2 | O182: 2
A183: 2 | B183: 2 | N183: 2 | O183: 2
A184: 2 | B184: 2 | N184: 2 | O184: 2
A185: 2 | B185: 2 | N185: 2 | O185: 2
A186: 2 | B186: 2 | N186: 2 | O186: 2
A187: 2 | B187: 3 | N187: 2 | O187: 3
A188: 2 | B188: 3 | N188: 2 | O188: 3
A189: 2 | B189: 3 | N189: 2 | O189: 3
A190: 2 | B190: 3 | N190: 2 | O190: 3
A191: 2 | B191: 3 | N191: 2 | O191: 3
A192: 2 | B192: 3 | N192: 2 | O192: 3
A193: 2 | B193: 3 | N193: 2 | O193: 3
A194: 2 | B194: 3 | N194: 2 | O194: 3
A195: 2 | B195: 3 | N195: 2 | O195: 3
A196: 2 | B196: 3 | N196: 2 | O196: 3
A197: 2 | B197: 3 | N197: 2 | O197: 3
A198: 2 | B198: 3 | N198: 2 | O198: 3
A199: 2 | B199: 3 | N199: 2 | O199: 3
A200: 2 | B200: 3 | N200: 2 | O200: 3
... 281 more rows

Sheet Uebung 5
A1: Alter (1 < 30; 2 31 - 50; 3 > 51) | B1: Wohnort (1 Stadt; 2 Aglo; 3 Land) | E1: Passt die Stichprobe zur folgenden Populationsverteilung? | L1: Alter
A2: 2 | B2: 1 | L2: <= 30 | M2: 30 - 50 | N2: 50 - 100
A3: 1 | B3: 1 | K3: Stadt | L3: 0.05 | M3: 0.15 | N3: 0.2
A4: 1 | B4: 1 | J4: Wohnort | K4: Aglo | L4: 0.2 | M4: 0.03 | N4: 0.235
A5: 3 | B5: 1 | K5: Land | L5: 0.1 | M5: 0.025 | N5: 0.01
A6: 1 | B6: 2
A7: 3 | B7: 2
A8: 3 | B8: 1
A9: 2 | B9: 2
A10: 1 | B10: 3
A11: 1 | B11: 2
A12: 2 | B12: 2
A13: 1 | B13: 2
A14: 1 | B14: 3
A15: 3 | B15: 1
A16: 3 | B16: 2
A17: 3 | B17: 2
A18: 3 | B18: 1
A19: 3 | B19: 3
A20: 1 | B20: 3
A21: 1 | B21: 3
A22: 1 | B22: 3
A23: 1 | B23: 1
A24: 3 | B24: 3
A25: 3 | B25: 1
A26: 3 | B26: 1
A27: 3 | B27: 2
A28: 3 | B28: 2
A29: 3 | B29: 2
A30: 3 | B30: 1
A31: 3 | B31: 2
A32: 3 | B32: 3
A33: 3 | B33: 2
A34: 3 | B34: 3
A35: 2 | B35: 3
A36: 2 | B36: 3
A37: 2 | B37: 1
A38: 1 | B38: 2
A39: 3 | B39: 2
A40: 1 | B40: 1
A41: 1 | B41: 3
A42: 1 | B42: 2
A43: 3 | B43: 3
A44: 2 | B44: 1
A45: 3 | B45: 3
A46: 2 | B46: 3
A47: 3 | B47: 3
A48: 3 | B48: 1
A49: 3 | B49: 3
A50: 3 | B50: 2
A51: 3 | B51: 1
A52: 3 | B52: 1
A53: 1 | B53: 2
A54: 2 | B54: 1
A55: 3 | B55: 3
A56: 1 | B56: 3
A57: 3 | B57: 1
A58: 3 | B58: 2
A59: 3 | B59: 3
A60: 3 | B60: 1
A61: 1 | B61: 3
A62: 2 | B62: 1
A63: 3 | B63: 3
A64: 3 | B64: 2
A65: 1 | B65: 2
A66: 3 | B66: 3
A67: 3 | B67: 3
A68: 3 | B68: 2
A69: 2 | B69: 3
A70: 1 | B70: 2
A71: 1 | B71: 3
A72: 3 | B72: 1
A73: 3 | B73: 2
A74: 3 | B74: 1
A75: 1 | B75: 1
A76: 1 | B76: 3
A77: 1 | B77: 2
A78: 3 | B78: 2
A79: 3 | B79: 2
A80: 1 | B80: 3
A81: 3 | B81: 1
A82: 3 | B82: 3
A83: 3 | B83: 1
A84: 3 | B84: 1
A85: 2 | B85: 3
A86: 1 | B86: 3
A87: 2 | B87: 1
A88: 3 | B88: 3
A89: 3 | B89: 1

Sheet FisherBeispiel
C1: Rauchverhalten
C2: Raucher | D2: Nichtraucher | E2: Summen
A3: Geschlecht | B3: Männer | C3: 12 | D3: 34 | E3: =SUM(C3:D3) -> 46
B4: Frauen | C4: 11 | D4: 43 | E4: =SUM(C4:D4) -> 54
B5: Summen | C5: =SUM(C3:C4) -> 23 | D5: =SUM(D3:D4) -> 77 | E5: =SUM(C5:D5) -> 100
A7: zweiseitiger Test:
A8: erste Art: | B8: 2*min(P(X<=12),P(X >=12)) | E8: X hpergeometrisch verteilt.
A9: P(X >=12) | B9: =1-_xlfn.HYPGEOM.DIST(11,23,46,100,1) -> 0.3297465047 | C9: =1-HYPGEOM.VERT(11;23;46;100;1)
A10: P(X <=12) | B10: =_xlfn.HYPGEOM.DIST(12,23,46,100,1) -> 0.820046169 | C10: =HYPGEOM.VERT(12;23;46;100;1)
A11: p-Wert | B11: =2*B9 -> 0.6594930093
A13: zweite Art:
A14: x | B14: P(X=x) | C14: P(X=x) < P(X = 12)
A15: 0 | B15: =_xlfn.HYPGEOM.DIST(A15,23,46,100,0) -> 4.367255895e-08 | C15: =IF(B15<=$B$27,B15,0) -> 4.367255895e-08 | D15: =SUM(C15:C49) -> 0.6342973735 | E15: P-Wert
A16: 1 | B16: =_xlfn.HYPGEOM.DIST(A16,23,46,100,0) -> 1.44392398e-06 | C16: =IF(B16<=$B$27,B16,0) -> 1.44392398e-06
A17: 2 | B17: 2.16588597e-05 | C17: 2.16588597e-05
A18: 3 | B18: 0.0001962037879 | C18: 0.0001962037879
A19: 4 | B19: 0.00120525184 | C19: 0.00120525184
A20: 5 | B20: 0.005343283157 | C20: 0.005343283157
A21: 6 | B21: 0.01776280617 | C21: 0.01776280617
A22: 7 | B22: 0.04540867743 | C22: 0.04540867743
A23: 8 | B23: 0.09081735486 | C23: 0.09081735486
A24: 9 | B24: 0.1437941452 | C24: 0.1437941452
A25: 10 | B25: 0.1816716273 | C25: 0
A26: 11 | B26: 0.1840309991 | C26: 0
A27: 12 | B27: 0.1497926737 | C27: 0.1497926737
A28: 13 | B28: 0.09794136357 | C28: 0.09794136357
A29: 14 | B29: 0.05130261901 | C29: 0.05130261901
A30: 15 | B30: 0.02141326707 | C30: 0.02141326707
A31: 16 | B31: 0.007061822118 | C31: 0.007061822118
A32: 17 | B32: 0.001817380692 | C32: 0.001817380692
A33: 18 | B33: 0.0003585308848 | C33: 0.0003585308848
A34: 19 | B34: 5.28361304e-05 | C34: 5.28361304e-05
A35: 20 | B35: 5.594413807e-06 | C35: 5.594413807e-06
A36: 21 | B36: 3.996009862e-07 | C36: 3.996009862e-07
A37: 22 | B37: 1.713554829e-08 | C37: 1.713554829e-08
A38: 23 | B38: 3.311217061e-10 | C38: 3.311217061e-10
A39: 24 | B39: 0 | C39: 0
A40: 25 | B40: 0 | C40: 0
A41: 26 | B41: 0 | C41: 0
A42: 27 | B42: 0 | C42: 0
A43: 28 | B43: 0 | C43: 0
A44: 29 | B44: 0 | C44: 0
A45: 30 | B45: 0 | C45: 0
A46: 31 | B46: 0 | C46: 0
A47: 32 | B47: 0 | C47: 0
A48: 33 | B48: 0 | C48: 0
A49: 34 | B49: 0 | C49: 0
E50: Variante
A51: 3. Art | B51: Quotenverhältnis (OR): | D51: =12*43/(11*34) -> 1.379679144 | E51: =12.5*43.5/(11.5*34.5) -> 1.370510397
B52: ln(OR) | D52: =LN(D51) -> 0.3218509681 | E52: =LN(E51) -> 0.315183223 | F52: Teststatistik, näherungsweise normalverteilt (E(ln(=R))=0
B53: Varianz(ln(OR)) | D53: =1/12+1/34+1/11+1/43 -> 0.2269100029 | E53: =1/12.5+1/34.5+1/11.5+1/43.5 -> 0.2189305347
B54: Stabw(Ln(OR)) | D54: =SQRT(E53) -> 0.4679001333 | E54: =SQRT(E53) -> 0.4679001333
B55: 0.95-VI
B56: untere Grenze | D56: =EXP(D52-1.96*D54) -> 0.5514339051 | E56: =EXP(E52-1.96*E54) -> 0.5477693152 | F56: R ist konservativer!!!!
B57: obere Grenze | D57: =EXP(D52+1.96*D54) -> 3.451935987 | E57: =EXP(E52+1.96*E54) -> 3.428995922
B59: 1 liegt im VI: also nicht signifikante Abweichung der OR von 1
A62: Mit R:
A63: > m=matrix(c(12,34,11,43),byrow=T,ncol=2)
A64: > m
A65: [,1] [,2]
A66: [1,] 12 34
A67: [2,] 11 43
A68: > fisher.test(m)
A70: Fisher's Exact Test for Count Data
A72: data: m
A73: p-value = 0.6343
A74: alternative hypothesis: true odds ratio is not equal to 1
A75: 95 percent confidence interval:
A76: 0.4877661 3.9167187
A77: sample estimates:
A78: odds ratio
A79: 1.375193

Sheet Uebung 5 (2)
A1: Alter (1 < 30; 2 31 - 50; 3 > 51) | B1: Wohnort (1 Stadt; 2 Aglo; 3 Land) | E1: Passt die Stichprobe zur folgenden Populationsverteilung? | P1: Alter | Q1: Wohnort
A2: 2 | B2: 1 | J2: Anteile in Grundgesamtheit | P2: 2 | Q2: 1
A3: 1 | B3: 1 | L3: Alter | P3: 1 | Q3: 1
A4: 1 | B4: 1 | D4: H0: die Stichprobe passt zur Populationsverteilung (weicht nicht ab) | L4: <= 30 | M4: 30 - 50 | N4: 50 - 100 | P4: 1 | Q4: 1
A5: 3 | B5: 1 | D5: HA. Die Stichprobe passt nicht (weicht ab) | K5: Stadt | L5: 0.05 | M5: 0.15 | N5: 0.2 | P5: 3 | Q5: 1
A6: 1 | B6: 2 | D6: (Alpha = 0.05) | J6: Wohnort | K6: Aglo | L6: 0.2 | M6: 0.03 | N6: 0.235 | P6: 1 | Q6: 2
A7: 3 | B7: 2 | K7: Land | L7: 0.1 | M7: 0.025 | N7: 0.01 | P7: 3 | Q7: 2
A8: 3 | B8: 1 | P8: 3 | Q8: 1
A9: 2 | B9: 2 | P9: 2 | Q9: 2
A10: 1 | B10: 3 | P10: 1 | Q10: 3
A11: 1 | B11: 2 | P11: 1 | Q11: 2
A12: 2 | B12: 2 | D12: Beobachtete Häufigkeiten | P12: 2 | Q12: 2
A13: 1 | B13: 2 | P13: 1 | Q13: 2
A14: 1 | B14: 3 | F14: <= 30 | G14: 30 - 50 | H14: 50 - 100 | P14: 1 | Q14: 3
A15: 3 | B15: 1 | F15: 1 | G15: 2 | H15: 3 | I15: Randsummen | P15: 3 | Q15: 1
A16: 3 | B16: 2 | D16: Stadt | E16: 1 | F16: =SUM(IF(($B$2:$B$89=$E16)*($A$2:$A$89=F$15),1,0)) -> 5 | G16: =SUM(IF(($B$2:$B$89=$E16)*($A$2:$A$89=G$15),1,0)) -> 6 | H16: =SUM(IF(($B$2:$B$89=$E16)*($A$2:$A$89=H$15),1,0)) -> 18 | I16: =SUM(F16:H16) -> 29 | P16: 3 | Q16: 2
A17: 3 | B17: 2 | D17: Aglo | E17: 2 | F17: =SUM(IF(($B$2:$B$89=$E17)*($A$2:$A$89=F$15),1,0)) -> 9 | G17: =SUM(IF(($B$2:$B$89=$E17)*($A$2:$A$89=G$15),1,0)) -> 2 | H17: =SUM(IF(($B$2:$B$89=$E17)*($A$2:$A$89=H$15),1,0)) -> 16 | I17: =SUM(F17:H17) -> 27 | P17: 3 | Q17: 2
A18: 3 | B18: 1 | D18: Land | E18: 3 | F18: =SUM(IF(($B$2:$B$89=$E18)*($A$2:$A$89=F$15),1,0)) -> 12 | G18: =SUM(IF(($B$2:$B$89=$E18)*($A$2:$A$89=G$15),1,0)) -> 5 | H18: =SUM(IF(($B$2:$B$89=$E18)*($A$2:$A$89=H$15),1,0)) -> 15 | I18: =SUM(F18:H18) -> 32 | P18: 3 | Q18: 1
A19: 3 | B19: 3 | E19: Randsummen | F19: =SUM(F16:F18) -> 26 | G19: =SUM(G16:G18) -> 13 | H19: =SUM(H16:H18) -> 49 | I19: =SUM(F16:H18) -> 88 | P19: 3 | Q19: 3
A20: 1 | B20: 3 | P20: 1 | Q20: 3
A21: 1 | B21: 3 | P21: 1 | Q21: 3
A22: 1 | B22: 3 | P22: 1 | Q22: 3
A23: 1 | B23: 1 | P23: 1 | Q23: 1
A24: 3 | B24: 3 | D24: erwartete Häufigkeiten | P24: 3 | Q24: 3
A25: 3 | B25: 1 | P25: 3 | Q25: 1
A26: 3 | B26: 1 | F26: <= 30 | G26: 30 - 50 | H26: 50 - 100 | P26: 3 | Q26: 1
A27: 3 | B27: 2 | F27: 1 | G27: 2 | H27: 3 | I27: Randsummen | P27: 3 | Q27: 2
A28: 3 | B28: 2 | D28: Stadt | E28: 1 | F28: =L5*$I$19 -> 4.4 | G28: 13.2 | H28: 17.6 | I28: =SUM(F28:H28) -> 35.2 | P28: 3 | Q28: 2
A29: 3 | B29: 2 | D29: Aglo | E29: 2 | F29: 17.6 | G29: 2.64 | H29: 20.68 | I29: =SUM(F29:H29) -> 40.92 | P29: 3 | Q29: 2
A30: 3 | B30: 1 | D30: Land | E30: 3 | F30: 8.8 | G30: 2.2 | H30: 0.88 | I30: =SUM(F30:H30) -> 11.88 | P30: 3 | Q30: 1
A31: 3 | B31: 2 | E31: Randsummen | F31: =SUM(F28:F30) -> 30.8 | G31: =SUM(G28:G30) -> 18.04 | H31: =SUM(H28:H30) -> 39.16 | I31: =SUM(F28:H30) -> 88 | P31: 3 | Q31: 2
A32: 3 | B32: 3 | P32: 3 | Q32: 3
A33: 3 | B33: 2 | E33: Achtung: Randsummen stimmen hier nicht überein!!!!! (Bei Vergleich mit vorgegebener (bivariater) Häufigkeitsverteilung der Fall) | P33: 3 | Q33: 2
A34: 3 | B34: 3 | D34: Es hat vier erwartete Häufigkeiten unter 5, was | P34: 3 | Q34: 3
A35: 2 | B35: 3 | D35: =4/9*100 -> 44.44444444 | E35: % ausmacht. Deshalb sollt man eine Monte-Carlo-Analyse mit R vornehmen. | P35: 2 | Q35: 3
A36: 2 | B36: 3 | P36: 2 | Q36: 3
A37: 2 | B37: 1 | D37: (s. unten) | P37: 2 | Q37: 1
A38: 1 | B38: 2 | P38: 1 | Q38: 2
A39: 3 | B39: 2 | P39: 3 | Q39: 2
A40: 1 | B40: 1 | P40: 1 | Q40: 1
A41: 1 | B41: 3 | P41: 1 | Q41: 3
A42: 1 | B42: 2 | P42: 1 | Q42: 2
A43: 3 | B43: 3 | P43: 3 | Q43: 3
A44: 2 | B44: 1 | P44: 2 | Q44: 1
A45: 3 | B45: 3 | P45: 3 | Q45: 3
A46: 2 | B46: 3 | D46: Mit R: | P46: 2 | Q46: 3
A47: 3 | B47: 3 | D47: > wohnalt=read.table("clipboard",header=T) | P47: 3 | Q47: 3
A48: 3 | B48: 1 | D48: > head(wohnalt) | P48: 3 | Q48: 1
A49: 3 | B49: 3 | D49: Alter Wohnort | P49: 3 | Q49: 3
A50: 3 | B50: 2 | D50: 1 2 1 | P50: 3 | Q50: 2
A51: 3 | B51: 1 | D51: 2 1 1 | P51: 3 | Q51: 1
A52: 3 | B52: 1 | D52: 3 1 1 | P52: 3 | Q52: 1
A53: 1 | B53: 2 | D53: 4 3 1 | P53: 1 | Q53: 2
A54: 2 | B54: 1 | D54: 5 1 2 | P54: 2 | Q54: 1
A55: 3 | B55: 3 | D55: 6 3 2 | P55: 3 | Q55: 3
A56: 1 | B56: 3 | D56: > tabWA=table(wohnalt$Wohnort,wohnalt$Alter) | P56: 1 | Q56: 3
A57: 3 | B57: 1 | D57: > rownames(tabWA)=c("Stadt","Aglo","Land") | P57: 3 | Q57: 1
A58: 3 | B58: 2 | D58: > colnames(tabWA)=c("<= 30","30 - 50","50 - 100") | P58: 3 | Q58: 2
A59: 3 | B59: 3 | D59: > tabWA | P59: 3 | Q59: 3
A60: 3 | B60: 1 | P60: 3 | Q60: 1
A61: 1 | B61: 3 | D61: <= 30 30 - 50 50 - 100 | P61: 1 | Q61: 3
A62: 2 | B62: 1 | D62: Stadt 5 6 18 | P62: 2 | Q62: 1
A63: 3 | B63: 3 | D63: Aglo 9 2 16 | P63: 3 | Q63: 3
A64: 3 | B64: 2 | D64: Land 12 5 15 | P64: 3 | Q64: 2
A65: 1 | B65: 2 | D65: > beobH=c(tabWA[1,],tabWA[2,],tabWA[3,]) | I65: # Tabelle in Vektor umwandeln, Zeilenweises Einlesen der Häufigkeiten der Tabelle tabWA | P65: 1 | Q65: 2
A66: 3 | B66: 3 | D66: > anteile=c(0.05, 0.15, 0.2, | P66: 3 | Q66: 3
A67: 3 | B67: 3 | D67: + 0.2, 0.03, 0.235, | P67: 3 | Q67: 3
A68: 3 | B68: 2 | D68: + 0.1 ,0.025, 0.01) | P68: 3 | Q68: 2
A69: 2 | B69: 3 | D69: > WAtest=chisq.test(beobH,p=anteile) | P69: 2 | Q69: 3
A70: 1 | B70: 2 | D70: Warning message: | P70: 1 | Q70: 2
A71: 1 | B71: 3 | D71: In chisq.test(beobH, p = anteile) : | P71: 1 | Q71: 3
A72: 3 | B72: 1 | D72: Chi-Quadrat-Approximation kann inkorrekt sein | P72: 3 | Q72: 1
A73: 3 | B73: 2 | P73: 3 | Q73: 2
A74: 3 | B74: 1 | D74: Die rote Fehlermeldung rührt daher, dass es zu viele erwartete Häufigkeiten unter 5 hat. | P74: 3 | Q74: 1
A75: 1 | B75: 1 | P75: 1 | Q75: 1
A76: 1 | B76: 3 | D76: Das kann man mit R überprüfen: | P76: 1 | Q76: 3
A77: 1 | B77: 2 | D77: > WAtest$expected | P77: 1 | Q77: 2
A78: 3 | B78: 2 | D78: <= 30 30 - 50 50 - 100 <= 30 30 - 50 50 - 100 <= 30 30 - 50 50 - 100 | P78: 3 | Q78: 2
A79: 3 | B79: 2 | D79: 4.40 13.20 17.60 17.60 2.64 20.68 8.80 2.20 0.88 | P79: 3 | Q79: 2
A80: 1 | B80: 3 | P80: 1 | Q80: 3
A81: 3 | B81: 1 | P81: 3 | Q81: 1
A82: 3 | B82: 3 | D82: Mit | P82: 3 | Q82: 3
A83: 3 | B83: 1 | D83: > chisq.test(beobH,p=anteile,simulate.p.value = T) | P83: 3 | Q83: 1
A84: 3 | B84: 1 | P84: 3 | Q84: 1
A85: 2 | B85: 3 | D85: Chi-squared test for given probabilities with simulated p-value (based on | P85: 2 | Q85: 3
A86: 1 | B86: 3 | D86: 2000 replicates) | P86: 1 | Q86: 3
A87: 2 | B87: 1 | P87: 2 | Q87: 1
A88: 3 | B88: 3 | D88: data: beobH | P88: 3 | Q88: 3
A89: 3 | B89: 1 | D89: X-squared = 240.72, df = NA, p-value = 0.0004998 | P89: 3 | Q89: 1
D92: Es gibt also singifikante Abweichungen
D95: Residuenanalyse
D96: > WA1test=chisq.test(beobH,p=anteile,simulate.p.value = T)
D97: > WA1test$residuals
D98: <= 30 30 - 50 50 - 100 <= 30 30 - 50 50 - 100 <= 30
D99: 0.28603878 -1.98173478 0.09534626 -2.04994457 -0.39389277 -1.02913082 1.07871978
D100: 30 - 50 50 - 100
D101: 1.88775961 15.05197057
D102: > WA1test$stdres
D103: <= 30 30 - 50 50 - 100 <= 30 30 - 50 50 - 100 <= 30
D104: 0.2934696 -2.1494932 0.1066004 -2.2919077 -0.3999375 -1.1766299 1.1370705
D105: 30 - 50 50 - 100
D106: 1.9118085 15.1277996
D108: > matrix(WA1test$stdres,ncol=3,byrow=T)
D109: [,1] [,2] [,3]
D110: [1,] 0.2934696 -2.1494932 0.1066004
D111: [2,] -2.2919077 -0.3999375 -1.1766299
D112: [3,] 1.1370705 1.9118085 15.1277996
D114: signifikante Abweichungen in (1,2), (2,1) und (3,3)
D117: Schlussfolgerung: Die Stichprobe kann nicht als Zufallsstichprobe aus der Grundgesamtheit betrachtet werden.
